{"text_format":"1","workbook":"xlsx","n_sheets":6,"sheets":["Instrucciones","identificacion","lista botiquin C","Ghost","Sit","Consulta situacion del botiquin"],"not_rendered":{"charts":0,"images":6,"macros":1,"external_links":0,"defined_names":6,"comments":0,"pivot_tables":0},"unopened":[],"bounds":{"document_bytes":16777216,"sheet_cells":100000,"rows_first":2000,"rows_last":500,"rows_between":2000,"halvings":0,"cell_chars":16384,"cell_head_chars":4096},"cells_cut":0,"cells_raw":0,"read":"whole","date_system":"1900"}

{"sheet":"Instrucciones","index":0,"n_rows":0,"n_cols":0,"rows_kept":0,"cut":false,"hidden":false,"merged":[]}

{"sheet":"identificacion","index":1,"n_rows":36,"n_cols":11,"rows_kept":36,"cut":false,"hidden":false,"merged":[[0,1,0,10],[6,7,6,10],[6,1,6,6],[7,1,7,6],[1,1,1,10],[2,3,2,10],[3,3,3,5],[3,7,3,10],[4,1,4,4],[4,5,4,10],[5,3,5,10],[2,1,2,2],[7,7,7,10],[3,1,3,2],[5,1,5,2],[13,2,13,9],[23,8,23,9],[23,2,23,3],[9,3,9,4],[9,5,9,6]]}
[null,"CONTROL DEL CONTENIDO DEL BOTIQUÍN TIPO C HASTA 60 MN"]
[null,"DATOS IDENTIFICATIVOS DEL BUQUE"]
[null,"Nombre del Buque",null,""]
[null,"Matrícula",null,"",null,null,"N.I.B.",""]
[null,"Nombre del propietario o empresa armadora",null,null,null,""]
[null,"Puerto base",null,""]
[null,"Nombre y apellidos del Responsable Sanitario a Bordo (RSB)",null,null,null,null,null,""]
[null,"D.N.I./N.I.E./Pasaporte del Responsable Sanitario a Bordo (RSB)",null,null,null,null,null,""]
[]
[null,null,null,"fecha del control:"]
[]
[]
[]
[null,null,"Observaciones del responsable de la revisión (ISM)"]
[]
[]
[]
[]
[]
[]
[]
[]
[]
[null,null,"Firma del responsable sanitario a bordo (RSB)",null,null,null,null,null,"Firma y Sello del responsable de la revisión"]
[]
[]
[]
[]
[]
[]
[]
[]
[]
[]
[]
[null,null,null,null,null,"- 1 -",null,null,null,null,"Orden PRE/2315/2015"]

{"sheet":"lista botiquin C","index":2,"n_rows":68,"n_cols":7,"rows_kept":68,"cut":false,"hidden":false,"merged":[[41,0,41,2],[42,0,42,2],[43,0,43,2],[0,0,0,1],[4,0,4,6],[1,0,1,1],[3,0,3,1],[31,0,31,2],[5,3,5,4],[2,0,2,1],[31,3,31,4],[14,0,15,0],[14,1,15,1],[32,0,32,2],[34,0,34,2],[35,0,35,2],[44,0,44,2],[46,0,46,2],[56,0,56,6],[67,5,67,6],[58,3,58,6],[47,0,47,2],[55,0,55,2],[53,0,53,2],[54,0,54,2],[45,0,45,2],[50,0,50,2],[48,0,48,2],[49,0,49,2],[51,0,51,2],[52,0,52,2],[33,0,33,2],[40,0,40,2],[36,0,36,2],[37,0,37,2],[39,0,39,2],[38,0,38,2]]}
[{"$f":"IF(+identificacion!$D$3<>\"\",CONCATENATE(+identificacion!$D$3),\"\")","v":""}]
[{"$f":"CONCATENATE(\"Matrícula: \",+identificacion!D4,\"  -     \",\"N.I.B.: \",+identificacion!H4)","v":"Matrícula:   -     N.I.B.: "}]
[{"$f":"IF(+identificacion!$F$5<>\"\",+identificacion!$F$5,\"\")","v":""}]
[{"$f":"IF(AND(+identificacion!$D$6<>\"\",+identificacion!$F$10<>\"\"),CONCATENATE(identificacion!$D$6,\", \",+DAY(identificacion!$F$10),\"/\",MONTH(identificacion!$F$10),\"/\",YEAR(identificacion!$F$10)),IF(AND(+identificacion!$D$6<>\"\",+identificacion!$F$10=\"\"),CONCATENATE(identificacion!$D$6,\", \",\"Sin Fecha de Control\"),\"\"))","v":""}]
["REVISIÓN DEL BOTIQUÍN  C   (hasta 60 MN)"]
["CÓDIGO ATC","PRINCIPIO ACTIVO","PRESENTACIÓN","Cantidad Exigida",null,"Cantidad a Bordo","CADUCIDAD"]
["C01CA24","EPINEFRINA","1 mg. 1ml. (jeringa precargada)",1,"caja"]
["C01DA","NITROGLICERINA","0,8 mg. 30 comp.",1,"caja"]
["C09AA01","CAPTOPRIL","25 mg. 60 comp.",1,"caja"]
["A02AD01","ALGELDRATO+HIDRÓXIDO DE MAGNESIO","600/300 mg. por comp..40 comp.",1,"caja"]
["A03FA01","METOCLOPRAMIDA","10 mg. 30 comp.",1,"caja"]
["A07DA03","LOPERAMIDA","2 mg. 20 cápsulas",1,"caja"]
["N02BE01","PARACETAMOL","1 g. 30 comp.",1,"caja"]
["N02BA01","ÁCIDO ACETILSALICÍLICO","100 mg. 30 comp.",1,"caja"]
["M01AB05","DICLOFENACO SÓDICO","50 mg. 40 comp.",1,"caja"]
[null,null,"1% gel tópico 60 g.",1,"caja"]
["N02BB02","METAMIZOL","575 mg. 10 cápsulas",1,"caja"]
["N05BA01","DIAZEPAM","10 mg. 6 ampollas",1,"envase"]
["N05AD01","HALOPERIDOL","2 mg. solución oral",1,"caja"]
["R06AA","DIMENHIDRINATO","50 mg. 12 comp.",1,"envase"]
["R06AE07","CETIRIZINA","10 mg. 20 comp.",1,"caja"]
["H02AB04","METILPREDNISOLONA","40 mg. 3 ampollas",1,"caja"]
["S01JA","FLUORESCEÍNA 2%","colirio 1 frasco 10 ml.",1,"envase"]
["SO1HA","OXIBUPROCAÍNA","0,2% colirio 10 ml.",1,"envase"]
["S01FA","CICLOPENTOLATO","1% colirio 5 ml.",1,"envase"]
["D08AG02","POVIDONA","10 unidosis 5 ml.",1,"envase"]
["D08AJ","ALCOHOL DE 70°","Solución 150 ml.",1,"envase"]
["D0BAC","CLORHEXIDINA","Solución tópica 1%. Frasco 25 ml.",1,"envase"]
[null,"SOLUCIÓN ANTISÉPTICA para higiene de manos","Sobres o Frasco 50 ml..",1,"envase"]
[null,"SUERO FISIOLÓGICO LAVADO HERIDAS","20 ml.",2,"envases"]
[null,"CORTICOIDE + OTROS","Gel de 30 g. ",1,"envase"]
["MATERIAL MÉDICO",null,null,"Cantidad Exigida",null,"Cantidad a Bordo","CADUCIDAD"]
["TENSIÓMETRO DIGITAL HOMOLOGADO",null,null,1,"unidad"]
["GELATINA HEMOSTÁTICA esponja 200 x 70 x 0,5 mm.",null,null,1,"unidad"]
["APARATO DE REANIMACIÓN MANUAL (AMBÚ) con MÁSCARA ADULTOS  (e)",null,null,1,"unidad"]
["CÁNULA PARA REANIMACIÓN BOCA A BOCA. TUBO DE GUEDEL núm. 3",null,null,1,"unidad"]
["CÁNULA PARA REANIMACIÓN BOCA A BOCA. TUBO DE GUEDEL núm. 4",null,null,1,"unidad"]
["VENDAS ELÁSTICAS 7 cm. x 4 m.",null,null,2,"unidades"]
["COMPRESAS DE GASA ESTÉRILES de 20 cm. x 20 cm. Caja con 25 unidades",null,null,1,"caja"]
["ESPARADRAPO HIPOALERGÉNICO de  5 cm. x 10 m.",null,null,1,"unidad"]
["GUANTES DESECHABLES DE  VINILO del núm. 8-9",null,null,4,"pares"]
["APÓSITOS AUTOADHESIVOS ESTÉRILES de 8 cm. x 10 cm. Caja con 5 unidades",null,null,1,"caja"]
["APÓSITOS  HIDROCOLOIDES  ESTÉRILES  de 5 cm. x 5 cm. Caja con 3 unidades",null,null,1,"caja"]
["APÓSITOS ADHESIVOS PLÁSTICOS. Rollo de 6 cm. x 1 m.",null,null,1,"unidad"]
["SUTURAS ADHESIVAS. Paquete de 6 mm x 102 mm.",null,null,1,"paquete"]
["GASAS GRASAS de 7 cm. x 9 cm. Caja con 20 sobres",null,null,1,"caja"]
["TIJERA RECTA AGUDA",null,null,1,"unidad"]
["PINZAS DE DISECCIÓN RECTAS SIN DIENTES ",null,null,1,"unidad"]
["TERMÓMETRO CLÍNICO DIGITAL",null,null,1,"unidad"]
["GUÍA SANITARIA A BORDO",null,null,1,"ejemplar"]
["JERINGAS DESECHABLES CON AGUJA, 5cc. (IM)",null,null,2,"unidades"]
["FÉRULAS DE ALUMINIO MALEABLE PARA DEDOS 2 cm. x 50 cm.",null,null,1,"tira"]
["FÉRULAS HINCHABLES TRANSPARENTES. Juego con varios tamaños (e)",null,null,1,"juego"]
["COLLAR CERVICAL PARA INMOVILIZACIÓN. RÍGIDO GRADUABLE (e)",null,null,1,"unidad"]
["CABESTRILLO o VENDA TRIANGULAR",null,null,1,"unidad"]
["MANTA PARA QUEMADOS Y SUPERVIVIENTES TERMO-AISLANTE Oro-plata",null,null,1,"unidad"]
["(e) Puede ubicarse fuera de la carcasa del botiquín, en su envase original.  "]
[]
[null,"Firma del responsable de sanitario a bordo",null,"Firma y Sello del responsable de la revisión"]
[null,{"$f":"IF(+identificacion!$H$7<>\"\",+identificacion!$H$7,\"\")","v":""}]
[]
[]
[]
[]
[]
[]
[]
["Orden PRE/2315/2015",null,"- 2 -",null,null,{"$f":"CONCATENATE(\"Fecha de impresión: \",+DAY(TODAY()),\"/\",MONTH(TODAY()),\"/\",YEAR(TODAY()))","v":"Fecha de impresión: 20/5/2016"}]

{"sheet":"Ghost","index":3,"n_rows":50,"n_cols":23,"rows_kept":50,"cut":false,"hidden":true,"merged":[]}
["CODIGO ATC","PRINCIPIO ACTIVO","PRESENTACION","ce0","ce_ud0","cab0","CADUCIDAD","Control","ce_menos_cab","Estado de la dotación","Aux01existencias","Existencias","id","ce","ce_ud","cab","ud_rep","f_cadu","orden","codigo","PA_MS","Presenta","observa"]
[{"$f":"IF('lista botiquin C'!A7<>\"\",'lista botiquin C'!A7,\"\")","v":"C01CA24"},{"$f":"+'lista botiquin C'!B7","v":"EPINEFRINA"},{"$f":"+'lista botiquin C'!C7","v":"1 mg. 1ml. (jeringa precargada)"},{"$f":"+'lista botiquin C'!D7","v":1},{"$f":"+'lista botiquin C'!E7","v":"caja"},{"$f":"+'lista botiquin C'!F7","v":0},{"$f":"IF('lista botiquin C'!G7<>\"\",'lista botiquin C'!G7,\"\")","v":""},{"$f":"IF(+G2=\"\",Sit!$B$1,IF(TODAY()>=Ghost!G2,+Sit!$B$2,IF(TODAY()>=Ghost!G2-30,Sit!$B$3,Sit!$B$4)))","v":"sin fecha de caducidad"},{"$f":"+D2-F2","v":1},{"$f":"CONCATENATE(L2,\"  --> \",H2)","v":"cantidad sin cumplimentar  --> sin fecha de caducidad"},{"$f":"IF('lista botiquin C'!F7=\"\",\"cantidad sin cumplimentar\",\n\nIF(I2=0,\"cantidad exigida\",\n\nIF(I2=1,\"falta1ud\",\n\nIF(I2>1,\"faltanuds\",\n\nIF(I2<0,\"dotación con excedentes\",\"VER\" )))))","v":"cantidad sin cumplimentar"},{"$f":"IF(AND(K2=\"falta1ud\",F2=0), CONCATENATE(\"sin existencias /\"&\" falta \"&+I2& \" unidad\"),\nIF(AND(K2=\"falta1ud\",F2=1), CONCATENATE(\"queda \"&+F2&\" unidad /\"&\" falta \"&+I2& \" unidad\"),\nIF(AND(K2=\"falta1ud\",F2>1), CONCATENATE(\"quedan \"&+F2&\" unidades /\"&\" falta \"&+I2& \" unidad\"),\nIF(AND(K2=\"faltanuds\",F2=0),CONCATENATE(\"sin existencias /\"&\" faltan \"&+I2& \" unidades\"),\nIF(AND(K2=\"faltanuds\",F2=1),CONCATENATE(\"queda \"&+F2&\" unidad /\"&\" faltan \"&+I2& \" unidades\"),\nIF(AND(K2=\"faltanuds\",F2>1),CONCATENATE(\"quedan \"&+F2&\" unidades /\"&\" faltan \"&+I2& \" unidades\"),\n+K2))))))","v":"cantidad sin cumplimentar"},"C60PA01",{"$f":"+D2","v":1},{"$f":"+E2","v":"caja"},{"$f":"+F2","v":0},{"$f":"+'Consulta situacion del botiquin'!G5","v":0},{"$f":"+G2","v":""},1,"C01CA24","EPINEFRINA","1 mg. 1ml. (jeringa precargada)"]
[{"$f":"IF('lista botiquin C'!A8<>\"\",'lista botiquin C'!A8,\"\")","v":"C01DA"},{"$f":"+'lista botiquin C'!B8","v":"NITROGLICERINA"},{"$f":"+'lista botiquin C'!C8","v":"0,8 mg. 30 comp."},{"$f":"+'lista botiquin C'!D8","v":1},{"$f":"+'lista botiquin C'!E8","v":"caja"},{"$f":"+'lista botiquin C'!F8","v":0},{"$f":"IF('lista botiquin C'!G8<>\"\",'lista botiquin C'!G8,\"\")","v":""},{"$f":"IF(+G3=\"\",Sit!$B$1,IF(TODAY()>=Ghost!G3,+Sit!$B$2,IF(TODAY()>=Ghost!G3-30,Sit!$B$3,Sit!$B$4)))","v":"sin fecha de caducidad"},{"$f":"+D3-F3","v":1},{"$f":"CONCATENATE(L3,\"  --> \",H3)","v":"cantidad sin cumplimentar  --> sin fecha de caducidad"},{"$f":"IF('lista botiquin C'!F8=\"\",\"cantidad sin cumplimentar\",\n\nIF(I3=0,\"cantidad exigida\",\n\nIF(I3=1,\"falta1ud\",\n\nIF(I3>1,\"faltanuds\",\n\nIF(I3<0,\"dotación con excedentes\",\"VER\" )))))","v":"cantidad sin cumplimentar"},{"$f":"IF(AND(K3=\"falta1ud\",F3=0), CONCATENATE(\"sin existencias /\"&\" falta \"&+I3& \" unidad\"),\nIF(AND(K3=\"falta1ud\",F3=1), CONCATENATE(\"queda \"&+F3&\" unidad /\"&\" falta \"&+I3& \" unidad\"),\nIF(AND(K3=\"falta1ud\",F3>1), CONCATENATE(\"quedan \"&+F3&\" unidades /\"&\" falta \"&+I3& \" unidad\"),\nIF(AND(K3=\"faltanuds\",F3=0),CONCATENATE(\"sin existencias /\"&\" faltan \"&+I3& \" unidades\"),\nIF(AND(K3=\"faltanuds\",F3=1),CONCATENATE(\"queda \"&+F3&\" unidad /\"&\" faltan \"&+I3& \" unidades\"),\nIF(AND(K3=\"faltanuds\",F3>1),CONCATENATE(\"quedan \"&+F3&\" unidades /\"&\" faltan \"&+I3& \" unidades\"),\n+K3))))))","v":"cantidad sin cumplimentar"},"C60PA02",{"$f":"+D3","v":1},{"$f":"+E3","v":"caja"},{"$f":"+F3","v":0},{"$f":"+'Consulta situacion del botiquin'!G6","v":0},{"$f":"+G3","v":""},2,"C01DA","NITROGLICERINA","0,8 mg. 30 comp."]
[{"$f":"IF('lista botiquin C'!A9<>\"\",'lista botiquin C'!A9,\"\")","v":"C09AA01"},{"$f":"+'lista botiquin C'!B9","v":"CAPTOPRIL"},{"$f":"+'lista botiquin C'!C9","v":"25 mg. 60 comp."},{"$f":"+'lista botiquin C'!D9","v":1},{"$f":"+'lista botiquin C'!E9","v":"caja"},{"$f":"+'lista botiquin C'!F9","v":0},{"$f":"IF('lista botiquin C'!G9<>\"\",'lista botiquin C'!G9,\"\")","v":""},{"$f":"IF(+G4=\"\",Sit!$B$1,IF(TODAY()>=Ghost!G4,+Sit!$B$2,IF(TODAY()>=Ghost!G4-30,Sit!$B$3,Sit!$B$4)))","v":"sin fecha de caducidad"},1,"cantidad sin cumplimentar  --> sin fecha de caducidad",{"$f":"IF('lista botiquin C'!F9=\"\",\"cantidad sin cumplimentar\",\n\nIF(I4=0,\"cantidad exigida\",\n\nIF(I4=1,\"falta1ud\",\n\nIF(I4>1,\"faltanuds\",\n\nIF(I4<0,\"dotación con excedentes\",\"VER\" )))))","v":"cantidad sin cumplimentar"},{"$f":"IF(AND(K4=\"falta1ud\",F4=0), CONCATENATE(\"sin existencias /\"&\" falta \"&+I4& \" unidad\"),\nIF(AND(K4=\"falta1ud\",F4=1), CONCATENATE(\"queda \"&+F4&\" unidad /\"&\" falta \"&+I4& \" unidad\"),\nIF(AND(K4=\"falta1ud\",F4>1), CONCATENATE(\"quedan \"&+F4&\" unidades /\"&\" falta \"&+I4& \" unidad\"),\nIF(AND(K4=\"faltanuds\",F4=0),CONCATENATE(\"sin existencias /\"&\" faltan \"&+I4& \" unidades\"),\nIF(AND(K4=\"faltanuds\",F4=1),CONCATENATE(\"queda \"&+F4&\" unidad /\"&\" faltan \"&+I4& \" unidades\"),\nIF(AND(K4=\"faltanuds\",F4>1),CONCATENATE(\"quedan \"&+F4&\" unidades /\"&\" faltan \"&+I4& \" unidades\"),\n+K4))))))","v":"cantidad sin cumplimentar"},"C60PA03",1,"caja",0,{"$f":"+'Consulta situacion del botiquin'!G7","v":0},"",3,"C09AA01","CAPTOPRIL","25 mg. 60 comp."]
[{"$f":"IF('lista botiquin C'!A10<>\"\",'lista botiquin C'!A10,\"\")","v":"A02AD01"},{"$f":"+'lista botiquin C'!B10","v":"ALGELDRATO+HIDRÓXIDO DE MAGNESIO"},{"$f":"+'lista botiquin C'!C10","v":"600/300 mg. por comp..40 comp."},{"$f":"+'lista botiquin C'!D10","v":1},{"$f":"+'lista botiquin C'!E10","v":"caja"},{"$f":"+'lista botiquin C'!F10","v":0},{"$f":"IF('lista botiquin C'!G10<>\"\",'lista botiquin C'!G10,\"\")","v":""},{"$f":"IF(+G5=\"\",Sit!$B$1,IF(TODAY()>=Ghost!G5,+Sit!$B$2,IF(TODAY()>=Ghost!G5-30,Sit!$B$3,Sit!$B$4)))","v":"sin fecha de caducidad"},1,"cantidad sin cumplimentar  --> sin fecha de caducidad",{"$f":"IF('lista botiquin C'!F10=\"\",\"cantidad sin cumplimentar\",\n\nIF(I5=0,\"cantidad exigida\",\n\nIF(I5=1,\"falta1ud\",\n\nIF(I5>1,\"faltanuds\",\n\nIF(I5<0,\"dotación con excedentes\",\"VER\" )))))","v":"cantidad sin cumplimentar"},{"$f":"IF(AND(K5=\"falta1ud\",F5=0), CONCATENATE(\"sin existencias /\"&\" falta \"&+I5& \" unidad\"),\nIF(AND(K5=\"falta1ud\",F5=1), CONCATENATE(\"queda \"&+F5&\" unidad /\"&\" falta \"&+I5& \" unidad\"),\nIF(AND(K5=\"falta1ud\",F5>1), CONCATENATE(\"quedan \"&+F5&\" unidades /\"&\" falta \"&+I5& \" unidad\"),\nIF(AND(K5=\"faltanuds\",F5=0),CONCATENATE(\"sin existencias /\"&\" faltan \"&+I5& \" unidades\"),\nIF(AND(K5=\"faltanuds\",F5=1),CONCATENATE(\"queda \"&+F5&\" unidad /\"&\" faltan \"&+I5& \" unidades\"),\nIF(AND(K5=\"faltanuds\",F5>1),CONCATENATE(\"quedan \"&+F5&\" unidades /\"&\" faltan \"&+I5& \" unidades\"),\n+K5))))))","v":"cantidad sin cumplimentar"},"C60PA04",1,"caja",0,{"$f":"+'Consulta situacion del botiquin'!G8","v":0},"",4,"A02AD","ALGELDRATO+HIDRÓXIDO DE MAGNESIO","600/300 mg. por comp..40 comp."]
[{"$f":"IF('lista botiquin C'!A11<>\"\",'lista botiquin C'!A11,\"\")","v":"A03FA01"},{"$f":"+'lista botiquin C'!B11","v":"METOCLOPRAMIDA"},{"$f":"+'lista botiquin C'!C11","v":"10 mg. 30 comp."},{"$f":"+'lista botiquin C'!D11","v":1},{"$f":"+'lista botiquin C'!E11","v":"caja"},{"$f":"+'lista botiquin C'!F11","v":0},{"$f":"IF('lista botiquin C'!G11<>\"\",'lista botiquin C'!G11,\"\")","v":""},{"$f":"IF(+G6=\"\",Sit!$B$1,IF(TODAY()>=Ghost!G6,+Sit!$B$2,IF(TODAY()>=Ghost!G6-30,Sit!$B$3,Sit!$B$4)))","v":"sin fecha de caducidad"},1,"cantidad sin cumplimentar  --> sin fecha de caducidad",{"$f":"IF('lista botiquin C'!F11=\"\",\"cantidad sin cumplimentar\",\n\nIF(I6=0,\"cantidad exigida\",\n\nIF(I6=1,\"falta1ud\",\n\nIF(I6>1,\"faltanuds\",\n\nIF(I6<0,\"dotación con excedentes\",\"VER\" )))))","v":"cantidad sin cumplimentar"},"cantidad sin cumplimentar","C60PA05",1,"caja",0,{"$f":"+'Consulta situacion del botiquin'!G9","v":0},"",5,"A03FA01","METOCLOPRAMIDA","10 mg. 30 comp."]
[{"$f":"IF('lista botiquin C'!A12<>\"\",'lista botiquin C'!A12,\"\")","v":"A07DA03"},{"$f":"+'lista botiquin C'!B12","v":"LOPERAMIDA"},{"$f":"+'lista botiquin C'!C12","v":"2 mg. 20 cápsulas"},{"$f":"+'lista botiquin C'!D12","v":1},{"$f":"+'lista botiquin C'!E12","v":"caja"},{"$f":"+'lista botiquin C'!F12","v":0},{"$f":"IF('lista botiquin C'!G12<>\"\",'lista botiquin C'!G12,\"\")","v":""},{"$f":"IF(+G7=\"\",Sit!$B$1,IF(TODAY()>=Ghost!G7,+Sit!$B$2,IF(TODAY()>=Ghost!G7-30,Sit!$B$3,Sit!$B$4)))","v":"sin fecha de caducidad"},1,"cantidad sin cumplimentar  --> sin fecha de caducidad",{"$f":"IF('lista botiquin C'!F12=\"\",\"cantidad sin cumplimentar\",\n\nIF(I7=0,\"cantidad exigida\",\n\nIF(I7=1,\"falta1ud\",\n\nIF(I7>1,\"faltanuds\",\n\nIF(I7<0,\"dotación con excedentes\",\"VER\" )))))","v":"cantidad sin cumplimentar"},"cantidad sin cumplimentar","C60PA06",1,"caja",0,{"$f":"+'Consulta situacion del botiquin'!G10","v":0},"",6,"A07DA03","LOPERAMIDA","2 mg. 20 cápsulas"]
[{"$f":"IF('lista botiquin C'!A13<>\"\",'lista botiquin C'!A13,\"\")","v":"N02BE01"},{"$f":"+'lista botiquin C'!B13","v":"PARACETAMOL"},{"$f":"+'lista botiquin C'!C13","v":"1 g. 30 comp."},{"$f":"+'lista botiquin C'!D13","v":1},{"$f":"+'lista botiquin C'!E13","v":"caja"},{"$f":"+'lista botiquin C'!F13","v":0},{"$f":"IF('lista botiquin C'!G13<>\"\",'lista botiquin C'!G13,\"\")","v":""},{"$f":"IF(+G8=\"\",Sit!$B$1,IF(TODAY()>=Ghost!G8,+Sit!$B$2,IF(TODAY()>=Ghost!G8-30,Sit!$B$3,Sit!$B$4)))","v":"sin fecha de caducidad"},1,"cantidad sin cumplimentar  --> sin fecha de caducidad",{"$f":"IF('lista botiquin C'!F13=\"\",\"cantidad sin cumplimentar\",\n\nIF(I8=0,\"cantidad exigida\",\n\nIF(I8=1,\"falta1ud\",\n\nIF(I8>1,\"faltanuds\",\n\nIF(I8<0,\"dotación con excedentes\",\"VER\" )))))","v":"cantidad sin cumplimentar"},"cantidad sin cumplimentar","C60PA07",1,"caja",0,{"$f":"+'Consulta situacion del botiquin'!G11","v":0},"",7,"N02BE01","PARACETAMOL","1 g. 30 comp."]
[{"$f":"IF('lista botiquin C'!A14<>\"\",'lista botiquin C'!A14,\"\")","v":"N02BA01"},{"$f":"+'lista botiquin C'!B14","v":"ÁCIDO ACETILSALICÍLICO"},{"$f":"+'lista botiquin C'!C14","v":"100 mg. 30 comp."},{"$f":"+'lista botiquin C'!D14","v":1},{"$f":"+'lista botiquin C'!E14","v":"caja"},{"$f":"+'lista botiquin C'!F14","v":0},{"$f":"IF('lista botiquin C'!G14<>\"\",'lista botiquin C'!G14,\"\")","v":""},{"$f":"IF(+G9=\"\",Sit!$B$1,IF(TODAY()>=Ghost!G9,+Sit!$B$2,IF(TODAY()>=Ghost!G9-30,Sit!$B$3,Sit!$B$4)))","v":"sin fecha de caducidad"},1,"cantidad sin cumplimentar  --> sin fecha de caducidad",{"$f":"IF('lista botiquin C'!F14=\"\",\"cantidad sin cumplimentar\",\n\nIF(I9=0,\"cantidad exigida\",\n\nIF(I9=1,\"falta1ud\",\n\nIF(I9>1,\"faltanuds\",\n\nIF(I9<0,\"dotación con excedentes\",\"VER\" )))))","v":"cantidad sin cumplimentar"},"cantidad sin cumplimentar","C60PA08",1,"caja",0,{"$f":"+'Consulta situacion del botiquin'!G12","v":0},"",8,"N02BA01","ÁCIDO ACETILSALICÍTICO","100 mg. 30 comp."]
[{"$f":"IF('lista botiquin C'!A15<>\"\",'lista botiquin C'!A15,\"\")","v":"M01AB05"},{"$f":"+'lista botiquin C'!B15","v":"DICLOFENACO SÓDICO"},{"$f":"+'lista botiquin C'!C15","v":"50 mg. 40 comp."},{"$f":"+'lista botiquin C'!D15","v":1},{"$f":"+'lista botiquin C'!E15","v":"caja"},{"$f":"+'lista botiquin C'!F15","v":0},{"$f":"IF('lista botiquin C'!G15<>\"\",'lista botiquin C'!G15,\"\")","v":""},{"$f":"IF(+G10=\"\",Sit!$B$1,IF(TODAY()>=Ghost!G10,+Sit!$B$2,IF(TODAY()>=Ghost!G10-30,Sit!$B$3,Sit!$B$4)))","v":"sin fecha de caducidad"},1,"cantidad sin cumplimentar  --> sin fecha de caducidad",{"$f":"IF('lista botiquin C'!F15=\"\",\"cantidad sin cumplimentar\",\n\nIF(I10=0,\"cantidad exigida\",\n\nIF(I10=1,\"falta1ud\",\n\nIF(I10>1,\"faltanuds\",\n\nIF(I10<0,\"dotación con excedentes\",\"VER\" )))))","v":"cantidad sin cumplimentar"},"cantidad sin cumplimentar","C60PA09",1,"caja",0,{"$f":"+'Consulta situacion del botiquin'!G13","v":0},"",9,"M01AB05","DICLOFENACO SÓDICO","50 mg. 40 comp."]
[{"$f":"IF('lista botiquin C'!A15<>\"\",'lista botiquin C'!A15,\"\")","v":"M01AB05"},{"$f":"+'lista botiquin C'!B15","v":"DICLOFENACO SÓDICO"},{"$f":"+'lista botiquin C'!C16","v":"1% gel tópico 60 g."},{"$f":"+'lista botiquin C'!D16","v":1},{"$f":"+'lista botiquin C'!E16","v":"caja"},{"$f":"+'lista botiquin C'!F16","v":0},{"$f":"IF('lista botiquin C'!G16<>\"\",'lista botiquin C'!G16,\"\")","v":""},{"$f":"IF(+G11=\"\",Sit!$B$1,IF(TODAY()>=Ghost!G11,+Sit!$B$2,IF(TODAY()>=Ghost!G11-30,Sit!$B$3,Sit!$B$4)))","v":"sin fecha de caducidad"},1,"cantidad sin cumplimentar  --> sin fecha de caducidad",{"$f":"IF('lista botiquin C'!F16=\"\",\"cantidad sin cumplimentar\",\n\nIF(I11=0,\"cantidad exigida\",\n\nIF(I11=1,\"falta1ud\",\n\nIF(I11>1,\"faltanuds\",\n\nIF(I11<0,\"dotación con excedentes\",\"VER\" )))))","v":"cantidad sin cumplimentar"},"cantidad sin cumplimentar","C60PA10",1,"caja",0,{"$f":"+'Consulta situacion del botiquin'!G14","v":0},"",10,"M01AB05","DICLOFENACO SÓDICO","1% gel tópico 60 g."]
[{"$f":"IF('lista botiquin C'!A17<>\"\",'lista botiquin C'!A17,\"\")","v":"N02BB02"},{"$f":"+'lista botiquin C'!B17","v":"METAMIZOL"},{"$f":"+'lista botiquin C'!C17","v":"575 mg. 10 cápsulas"},{"$f":"+'lista botiquin C'!D17","v":1},{"$f":"+'lista botiquin C'!E17","v":"caja"},{"$f":"+'lista botiquin C'!F17","v":0},{"$f":"IF('lista botiquin C'!G17<>\"\",'lista botiquin C'!G17,\"\")","v":""},{"$f":"IF(+G12=\"\",Sit!$B$1,IF(TODAY()>=Ghost!G12,+Sit!$B$2,IF(TODAY()>=Ghost!G12-30,Sit!$B$3,Sit!$B$4)))","v":"sin fecha de caducidad"},1,"cantidad sin cumplimentar  --> sin fecha de caducidad",{"$f":"IF('lista botiquin C'!F17=\"\",\"cantidad sin cumplimentar\",\n\nIF(I12=0,\"cantidad exigida\",\n\nIF(I12=1,\"falta1ud\",\n\nIF(I12>1,\"faltanuds\",\n\nIF(I12<0,\"dotación con excedentes\",\"VER\" )))))","v":"cantidad sin cumplimentar"},"cantidad sin cumplimentar","C60PA11",1,"caja",0,{"$f":"+'Consulta situacion del botiquin'!G15","v":0},"",11,"N02BB02","METAMIZOL","575 mg. 10 cápsulas"]
[{"$f":"IF('lista botiquin C'!A18<>\"\",'lista botiquin C'!A18,\"\")","v":"N05BA01"},{"$f":"+'lista botiquin C'!B18","v":"DIAZEPAM"},{"$f":"+'lista botiquin C'!C18","v":"10 mg. 6 ampollas"},{"$f":"+'lista botiquin C'!D18","v":1},{"$f":"+'lista botiquin C'!E18","v":"envase"},{"$f":"+'lista botiquin C'!F18","v":0},{"$f":"IF('lista botiquin C'!G18<>\"\",'lista botiquin C'!G18,\"\")","v":""},{"$f":"IF(+G13=\"\",Sit!$B$1,IF(TODAY()>=Ghost!G13,+Sit!$B$2,IF(TODAY()>=Ghost!G13-30,Sit!$B$3,Sit!$B$4)))","v":"sin fecha de caducidad"},1,"cantidad sin cumplimentar  --> sin fecha de caducidad",{"$f":"IF('lista botiquin C'!F18=\"\",\"cantidad sin cumplimentar\",\n\nIF(I13=0,\"cantidad exigida\",\n\nIF(I13=1,\"falta1ud\",\n\nIF(I13>1,\"faltanuds\",\n\nIF(I13<0,\"dotación con excedentes\",\"VER\" )))))","v":"cantidad sin cumplimentar"},"cantidad sin cumplimentar","C60PA12",1,"envase",0,{"$f":"+'Consulta situacion del botiquin'!G16","v":0},"",12,"N05BA01","DIAZEPAM","10 mg. 6 ampollas"]
[{"$f":"IF('lista botiquin C'!A19<>\"\",'lista botiquin C'!A19,\"\")","v":"N05AD01"},{"$f":"+'lista botiquin C'!B19","v":"HALOPERIDOL"},{"$f":"+'lista botiquin C'!C19","v":"2 mg. solución oral"},{"$f":"+'lista botiquin C'!D19","v":1},{"$f":"+'lista botiquin C'!E19","v":"caja"},{"$f":"+'lista botiquin C'!F19","v":0},{"$f":"IF('lista botiquin C'!G19<>\"\",'lista botiquin C'!G19,\"\")","v":""},{"$f":"IF(+G14=\"\",Sit!$B$1,IF(TODAY()>=Ghost!G14,+Sit!$B$2,IF(TODAY()>=Ghost!G14-30,Sit!$B$3,Sit!$B$4)))","v":"sin fecha de caducidad"},1,"cantidad sin cumplimentar  --> sin fecha de caducidad",{"$f":"IF('lista botiquin C'!F19=\"\",\"cantidad sin cumplimentar\",\n\nIF(I14=0,\"cantidad exigida\",\n\nIF(I14=1,\"falta1ud\",\n\nIF(I14>1,\"faltanuds\",\n\nIF(I14<0,\"dotación con excedentes\",\"VER\" )))))","v":"cantidad sin cumplimentar"},"cantidad sin cumplimentar","C60PA13",1,"caja",0,{"$f":"+'Consulta situacion del botiquin'!G17","v":0},"",13,"N05AD01","HALOPERIDOL","2 mg. solución oral"]
[{"$f":"IF('lista botiquin C'!A20<>\"\",'lista botiquin C'!A20,\"\")","v":"R06AA"},{"$f":"+'lista botiquin C'!B20","v":"DIMENHIDRINATO"},{"$f":"+'lista botiquin C'!C20","v":"50 mg. 12 comp."},{"$f":"+'lista botiquin C'!D20","v":1},{"$f":"+'lista botiquin C'!E20","v":"envase"},{"$f":"+'lista botiquin C'!F20","v":0},{"$f":"IF('lista botiquin C'!G20<>\"\",'lista botiquin C'!G20,\"\")","v":""},{"$f":"IF(+G15=\"\",Sit!$B$1,IF(TODAY()>=Ghost!G15,+Sit!$B$2,IF(TODAY()>=Ghost!G15-30,Sit!$B$3,Sit!$B$4)))","v":"sin fecha de caducidad"},1,"cantidad sin cumplimentar  --> sin fecha de caducidad",{"$f":"IF('lista botiquin C'!F20=\"\",\"cantidad sin cumplimentar\",\n\nIF(I15=0,\"cantidad exigida\",\n\nIF(I15=1,\"falta1ud\",\n\nIF(I15>1,\"faltanuds\",\n\nIF(I15<0,\"dotación con excedentes\",\"VER\" )))))","v":"cantidad sin cumplimentar"},"cantidad sin cumplimentar","C60PA14",1,"envase",0,{"$f":"+'Consulta situacion del botiquin'!G18","v":0},"",14,"R06AA","DIMENHIDRINATO","50 mg. 12 comp."]
[{"$f":"IF('lista botiquin C'!A21<>\"\",'lista botiquin C'!A21,\"\")","v":"R06AE07"},{"$f":"+'lista botiquin C'!B21","v":"CETIRIZINA"},{"$f":"+'lista botiquin C'!C21","v":"10 mg. 20 comp."},{"$f":"+'lista botiquin C'!D21","v":1},{"$f":"+'lista botiquin C'!E21","v":"caja"},{"$f":"+'lista botiquin C'!F21","v":0},{"$f":"IF('lista botiquin C'!G21<>\"\",'lista botiquin C'!G21,\"\")","v":""},{"$f":"IF(+G16=\"\",Sit!$B$1,IF(TODAY()>=Ghost!G16,+Sit!$B$2,IF(TODAY()>=Ghost!G16-30,Sit!$B$3,Sit!$B$4)))","v":"sin fecha de caducidad"},1,"cantidad sin cumplimentar  --> sin fecha de caducidad",{"$f":"IF('lista botiquin C'!F21=\"\",\"cantidad sin cumplimentar\",\n\nIF(I16=0,\"cantidad exigida\",\n\nIF(I16=1,\"falta1ud\",\n\nIF(I16>1,\"faltanuds\",\n\nIF(I16<0,\"dotación con excedentes\",\"VER\" )))))","v":"cantidad sin cumplimentar"},"cantidad sin cumplimentar","C60PA15",1,"caja",0,{"$f":"+'Consulta situacion del botiquin'!G19","v":0},"",15,"R06AE07","CETIRIZINA","10 mg. 20 comp."]
[{"$f":"IF('lista botiquin C'!A22<>\"\",'lista botiquin C'!A22,\"\")","v":"H02AB04"},{"$f":"+'lista botiquin C'!B22","v":"METILPREDNISOLONA"},{"$f":"+'lista botiquin C'!C22","v":"40 mg. 3 ampollas"},{"$f":"+'lista botiquin C'!D22","v":1},{"$f":"+'lista botiquin C'!E22","v":"caja"},{"$f":"+'lista botiquin C'!F22","v":0},{"$f":"IF('lista botiquin C'!G22<>\"\",'lista botiquin C'!G22,\"\")","v":""},{"$f":"IF(+G17=\"\",Sit!$B$1,IF(TODAY()>=Ghost!G17,+Sit!$B$2,IF(TODAY()>=Ghost!G17-30,Sit!$B$3,Sit!$B$4)))","v":"sin fecha de caducidad"},1,"cantidad sin cumplimentar  --> sin fecha de caducidad",{"$f":"IF('lista botiquin C'!F22=\"\",\"cantidad sin cumplimentar\",\n\nIF(I17=0,\"cantidad exigida\",\n\nIF(I17=1,\"falta1ud\",\n\nIF(I17>1,\"faltanuds\",\n\nIF(I17<0,\"dotación con excedentes\",\"VER\" )))))","v":"cantidad sin cumplimentar"},"cantidad sin cumplimentar","C60PA16",1,"caja",0,{"$f":"+'Consulta situacion del botiquin'!G20","v":0},"",16,"H02AB04","METILPREDNISOLONA","40 mg. 3 ampollas"]
[{"$f":"IF('lista botiquin C'!A23<>\"\",'lista botiquin C'!A23,\"\")","v":"S01JA"},{"$f":"+'lista botiquin C'!B23","v":"FLUORESCEÍNA 2%"},{"$f":"+'lista botiquin C'!C23","v":"colirio 1 frasco 10 ml."},{"$f":"+'lista botiquin C'!D23","v":1},{"$f":"+'lista botiquin C'!E23","v":"envase"},{"$f":"+'lista botiquin C'!F23","v":0},{"$f":"IF('lista botiquin C'!G23<>\"\",'lista botiquin C'!G23,\"\")","v":""},{"$f":"IF(+G18=\"\",Sit!$B$1,IF(TODAY()>=Ghost!G18,+Sit!$B$2,IF(TODAY()>=Ghost!G18-30,Sit!$B$3,Sit!$B$4)))","v":"sin fecha de caducidad"},1,"cantidad sin cumplimentar  --> sin fecha de caducidad",{"$f":"IF('lista botiquin C'!F23=\"\",\"cantidad sin cumplimentar\",\n\nIF(I18=0,\"cantidad exigida\",\n\nIF(I18=1,\"falta1ud\",\n\nIF(I18>1,\"faltanuds\",\n\nIF(I18<0,\"dotación con excedentes\",\"VER\" )))))","v":"cantidad sin cumplimentar"},"cantidad sin cumplimentar","C60PA17",1,"envase",0,{"$f":"+'Consulta situacion del botiquin'!G21","v":0},"",17,"S01JA","FLUORESCEÍNA 2%","colirio 1 frasco 10 ml."]
[{"$f":"IF('lista botiquin C'!A24<>\"\",'lista botiquin C'!A24,\"\")","v":"SO1HA"},{"$f":"+'lista botiquin C'!B24","v":"OXIBUPROCAÍNA"},{"$f":"+'lista botiquin C'!C24","v":"0,2% colirio 10 ml."},{"$f":"+'lista botiquin C'!D24","v":1},{"$f":"+'lista botiquin C'!E24","v":"envase"},{"$f":"+'lista botiquin C'!F24","v":0},{"$f":"IF('lista botiquin C'!G24<>\"\",'lista botiquin C'!G24,\"\")","v":""},{"$f":"IF(+G19=\"\",Sit!$B$1,IF(TODAY()>=Ghost!G19,+Sit!$B$2,IF(TODAY()>=Ghost!G19-30,Sit!$B$3,Sit!$B$4)))","v":"sin fecha de caducidad"},1,"cantidad sin cumplimentar  --> sin fecha de caducidad",{"$f":"IF('lista botiquin C'!F24=\"\",\"cantidad sin cumplimentar\",\n\nIF(I19=0,\"cantidad exigida\",\n\nIF(I19=1,\"falta1ud\",\n\nIF(I19>1,\"faltanuds\",\n\nIF(I19<0,\"dotación con excedentes\",\"VER\" )))))","v":"cantidad sin cumplimentar"},"cantidad sin cumplimentar","C60PA18",1,"envase",0,{"$f":"+'Consulta situacion del botiquin'!G22","v":0},"",18,"SO1HA","OXIBUPROCAÍNA","0,2% colirio 10 ml."]
[{"$f":"IF('lista botiquin C'!A25<>\"\",'lista botiquin C'!A25,\"\")","v":"S01FA"},{"$f":"+'lista botiquin C'!B25","v":"CICLOPENTOLATO"},{"$f":"+'lista botiquin C'!C25","v":"1% colirio 5 ml."},{"$f":"+'lista botiquin C'!D25","v":1},{"$f":"+'lista botiquin C'!E25","v":"envase"},{"$f":"+'lista botiquin C'!F25","v":0},{"$f":"IF('lista botiquin C'!G25<>\"\",'lista botiquin C'!G25,\"\")","v":""},{"$f":"IF(+G20=\"\",Sit!$B$1,IF(TODAY()>=Ghost!G20,+Sit!$B$2,IF(TODAY()>=Ghost!G20-30,Sit!$B$3,Sit!$B$4)))","v":"sin fecha de caducidad"},1,"cantidad sin cumplimentar  --> sin fecha de caducidad",{"$f":"IF('lista botiquin C'!F25=\"\",\"cantidad sin cumplimentar\",\n\nIF(I20=0,\"cantidad exigida\",\n\nIF(I20=1,\"falta1ud\",\n\nIF(I20>1,\"faltanuds\",\n\nIF(I20<0,\"dotación con excedentes\",\"VER\" )))))","v":"cantidad sin cumplimentar"},"cantidad sin cumplimentar","C60PA19",1,"envase",0,{"$f":"+'Consulta situacion del botiquin'!G23","v":0},"",19,"S01FA","CICLOPENTOLATO","1% colirio 5 ml."]
[{"$f":"IF('lista botiquin C'!A26<>\"\",'lista botiquin C'!A26,\"\")","v":"D08AG02"},{"$f":"+'lista botiquin C'!B26","v":"POVIDONA"},{"$f":"+'lista botiquin C'!C26","v":"10 unidosis 5 ml."},{"$f":"+'lista botiquin C'!D26","v":1},{"$f":"+'lista botiquin C'!E26","v":"envase"},{"$f":"+'lista botiquin C'!F26","v":0},{"$f":"IF('lista botiquin C'!G26<>\"\",'lista botiquin C'!G26,\"\")","v":""},{"$f":"IF(+G21=\"\",Sit!$B$1,IF(TODAY()>=Ghost!G21,+Sit!$B$2,IF(TODAY()>=Ghost!G21-30,Sit!$B$3,Sit!$B$4)))","v":"sin fecha de caducidad"},1,"cantidad sin cumplimentar  --> sin fecha de caducidad",{"$f":"IF('lista botiquin C'!F26=\"\",\"cantidad sin cumplimentar\",\n\nIF(I21=0,\"cantidad exigida\",\n\nIF(I21=1,\"falta1ud\",\n\nIF(I21>1,\"faltanuds\",\n\nIF(I21<0,\"dotación con excedentes\",\"VER\" )))))","v":"cantidad sin cumplimentar"},"cantidad sin cumplimentar","C60PA20",1,"envase",0,{"$f":"+'Consulta situacion del botiquin'!G24","v":0},"",20,"D08AG02","POVIDONA","10% solución dérmica 125 ml."]
[{"$f":"IF('lista botiquin C'!A27<>\"\",'lista botiquin C'!A27,\"\")","v":"D08AJ"},{"$f":"+'lista botiquin C'!B27","v":"ALCOHOL DE 70°"},{"$f":"+'lista botiquin C'!C27","v":"Solución 150 ml."},{"$f":"+'lista botiquin C'!D27","v":1},{"$f":"+'lista botiquin C'!E27","v":"envase"},{"$f":"+'lista botiquin C'!F27","v":0},{"$f":"IF('lista botiquin C'!G27<>\"\",'lista botiquin C'!G27,\"\")","v":""},{"$f":"IF(+G22=\"\",Sit!$B$1,IF(TODAY()>=Ghost!G22,+Sit!$B$2,IF(TODAY()>=Ghost!G22-30,Sit!$B$3,Sit!$B$4)))","v":"sin fecha de caducidad"},1,"cantidad sin cumplimentar  --> sin fecha de caducidad",{"$f":"IF('lista botiquin C'!F27=\"\",\"cantidad sin cumplimentar\",\n\nIF(I22=0,\"cantidad exigida\",\n\nIF(I22=1,\"falta1ud\",\n\nIF(I22>1,\"faltanuds\",\n\nIF(I22<0,\"dotación con excedentes\",\"VER\" )))))","v":"cantidad sin cumplimentar"},"cantidad sin cumplimentar","C60PA21",1,"envase",0,{"$f":"+'Consulta situacion del botiquin'!G25","v":0},"",21,"D08AJ","ALCOHOL DE 70°","Solución 150 ml."]
[{"$f":"IF('lista botiquin C'!A28<>\"\",'lista botiquin C'!A28,\"\")","v":"D0BAC"},{"$f":"+'lista botiquin C'!B28","v":"CLORHEXIDINA"},{"$f":"+'lista botiquin C'!C28","v":"Solución tópica 1%. Frasco 25 ml."},{"$f":"+'lista botiquin C'!D28","v":1},{"$f":"+'lista botiquin C'!E28","v":"envase"},{"$f":"+'lista botiquin C'!F28","v":0},{"$f":"IF('lista botiquin C'!G28<>\"\",'lista botiquin C'!G28,\"\")","v":""},{"$f":"IF(+G23=\"\",Sit!$B$1,IF(TODAY()>=Ghost!G23,+Sit!$B$2,IF(TODAY()>=Ghost!G23-30,Sit!$B$3,Sit!$B$4)))","v":"sin fecha de caducidad"},{"$f":"+D23-F23","v":1},{"$f":"CONCATENATE(L23,\"  --> \",H23)","v":"cantidad sin cumplimentar  --> sin fecha de caducidad"},{"$f":"IF('lista botiquin C'!F28=\"\",\"cantidad sin cumplimentar\",\n\nIF(I23=0,\"cantidad exigida\",\n\nIF(I23=1,\"falta1ud\",\n\nIF(I23>1,\"faltanuds\",\n\nIF(I23<0,\"dotación con excedentes\",\"VER\" )))))","v":"cantidad sin cumplimentar"},{"$f":"IF(AND(K23=\"falta1ud\",F23=0), CONCATENATE(\"sin existencias /\"&\" falta \"&+I23& \" unidad\"),\nIF(AND(K23=\"falta1ud\",F23=1), CONCATENATE(\"queda \"&+F23&\" unidad /\"&\" falta \"&+I23& \" unidad\"),\nIF(AND(K23=\"falta1ud\",F23>1), CONCATENATE(\"quedan \"&+F23&\" unidades /\"&\" falta \"&+I23& \" unidad\"),\nIF(AND(K23=\"faltanuds\",F23=0),CONCATENATE(\"sin existencias /\"&\" faltan \"&+I23& \" unidades\"),\nIF(AND(K23=\"faltanuds\",F23=1),CONCATENATE(\"queda \"&+F23&\" unidad /\"&\" faltan \"&+I23& \" unidades\"),\nIF(AND(K23=\"faltanuds\",F23>1),CONCATENATE(\"quedan \"&+F23&\" unidades /\"&\" faltan \"&+I23& \" unidades\"),\n+K23))))))","v":"cantidad sin cumplimentar"},"C60PA22",1,"envase",0,{"$f":"+'Consulta situacion del botiquin'!G26","v":0},"",22,"D0BAC","CLORHEXIDINA","Solución tópica 1%. Frasco 25 ml."]
[{"$f":"IF('lista botiquin C'!A29<>\"\",'lista botiquin C'!A29,\"\")","v":""},{"$f":"+'lista botiquin C'!B29","v":"SOLUCIÓN ANTISÉPTICA para higiene de manos"},{"$f":"+'lista botiquin C'!C29","v":"Sobres o Frasco 50 ml.."},{"$f":"+'lista botiquin C'!D29","v":1},{"$f":"+'lista botiquin C'!E29","v":"envase"},{"$f":"+'lista botiquin C'!F29","v":0},{"$f":"IF('lista botiquin C'!G29<>\"\",'lista botiquin C'!G29,\"\")","v":""},{"$f":"IF(+G24=\"\",Sit!$B$1,IF(TODAY()>=Ghost!G24,+Sit!$B$2,IF(TODAY()>=Ghost!G24-30,Sit!$B$3,Sit!$B$4)))","v":"sin fecha de caducidad"},1,"cantidad sin cumplimentar  --> sin fecha de caducidad",{"$f":"IF('lista botiquin C'!F29=\"\",\"cantidad sin cumplimentar\",\n\nIF(I24=0,\"cantidad exigida\",\n\nIF(I24=1,\"falta1ud\",\n\nIF(I24>1,\"faltanuds\",\n\nIF(I24<0,\"dotación con excedentes\",\"VER\" )))))","v":"cantidad sin cumplimentar"},"cantidad sin cumplimentar","C60PA23",1,"envase",0,{"$f":"+'Consulta situacion del botiquin'!G27","v":0},"",23,"","SOLUCIÓN ANTISÉPTICA para higiene de manos","Sobres o Frasco 50 ml.."]
[{"$f":"IF('lista botiquin C'!A30<>\"\",'lista botiquin C'!A30,\"\")","v":""},{"$f":"+'lista botiquin C'!B30","v":"SUERO FISIOLÓGICO LAVADO HERIDAS"},{"$f":"+'lista botiquin C'!C30","v":"20 ml."},{"$f":"+'lista botiquin C'!D30","v":2},{"$f":"+'lista botiquin C'!E30","v":"envases"},{"$f":"+'lista botiquin C'!F30","v":0},{"$f":"IF('lista botiquin C'!G30<>\"\",'lista botiquin C'!G30,\"\")","v":""},{"$f":"IF(+G25=\"\",Sit!$B$1,IF(TODAY()>=Ghost!G25,+Sit!$B$2,IF(TODAY()>=Ghost!G25-30,Sit!$B$3,Sit!$B$4)))","v":"sin fecha de caducidad"},2,"cantidad sin cumplimentar  --> sin fecha de caducidad",{"$f":"IF('lista botiquin C'!F30=\"\",\"cantidad sin cumplimentar\",\n\nIF(I25=0,\"cantidad exigida\",\n\nIF(I25=1,\"falta1ud\",\n\nIF(I25>1,\"faltanuds\",\n\nIF(I25<0,\"dotación con excedentes\",\"VER\" )))))","v":"cantidad sin cumplimentar"},"cantidad sin cumplimentar","C60PA24",2,"envases",0,{"$f":"+'Consulta situacion del botiquin'!G28","v":0},"",24,"","SUERO FISIOLÓGICO LAVADO HERIDAS","20 ml."]
[{"$f":"IF('lista botiquin C'!A31<>\"\",'lista botiquin C'!A31,\"\")","v":""},{"$f":"+'lista botiquin C'!B31","v":"CORTICOIDE + OTROS"},{"$f":"+'lista botiquin C'!C31","v":"Gel de 30 g. "},{"$f":"+'lista botiquin C'!D31","v":1},{"$f":"+'lista botiquin C'!E31","v":"envase"},{"$f":"+'lista botiquin C'!F31","v":0},{"$f":"IF('lista botiquin C'!G31<>\"\",'lista botiquin C'!G31,\"\")","v":""},{"$f":"IF(+G26=\"\",Sit!$B$1,IF(TODAY()>=Ghost!G26,+Sit!$B$2,IF(TODAY()>=Ghost!G26-30,Sit!$B$3,Sit!$B$4)))","v":"sin fecha de caducidad"},1,"cantidad sin cumplimentar  --> sin fecha de caducidad",{"$f":"IF('lista botiquin C'!F31=\"\",\"cantidad sin cumplimentar\",\n\nIF(I26=0,\"cantidad exigida\",\n\nIF(I26=1,\"falta1ud\",\n\nIF(I26>1,\"faltanuds\",\n\nIF(I26<0,\"dotación con excedentes\",\"VER\" )))))","v":"cantidad sin cumplimentar"},"cantidad sin cumplimentar","C60PA25",1,"envase",0,{"$f":"+'Consulta situacion del botiquin'!G29","v":0},"",25,"","CORTICOIDE + OTROS","Gel de 30 g. "]
[{"$f":"IF('lista botiquin C'!A33<>\"\",'lista botiquin C'!A33,\"\")","v":"TENSIÓMETRO DIGITAL HOMOLOGADO"},{"$f":"IF('lista botiquin C'!B33<>\"\",'lista botiquin C'!B33,\"-\")","v":"-"},{"$f":"IF('lista botiquin C'!C33<>\"\",'lista botiquin C'!C33,\"-\")","v":"-"},{"$f":"+'lista botiquin C'!D33","v":1},{"$f":"+'lista botiquin C'!E33","v":"unidad"},{"$f":"+'lista botiquin C'!F33","v":0},{"$f":"IF('lista botiquin C'!G33<>\"\",'lista botiquin C'!G33,\"\")","v":""},{"$f":"IF(+G27=\"\",Sit!$B$1,IF(TODAY()>=Ghost!G27,+Sit!$B$2,IF(TODAY()>=Ghost!G27-30,Sit!$B$3,Sit!$B$4)))","v":"sin fecha de caducidad"},{"$f":"+D27-F27","v":1},"cantidad sin cumplimentar  --> sin fecha de caducidad",{"$f":"IF('lista botiquin C'!F33=\"\",\"cantidad sin cumplimentar\",\n\nIF(I27=0,\"cantidad exigida\",\n\nIF(I27=1,\"falta1ud\",\n\nIF(I27>1,\"faltanuds\",\n\nIF(I27<0,\"dotación con excedentes\",\"VER\" )))))","v":"cantidad sin cumplimentar"},"cantidad sin cumplimentar","C60MS01",1,"unidad",0,{"$f":"+'Consulta situacion del botiquin'!O5","v":0},"",26,null,"TENSIÓMETRO DIGITAL HOMOLOGADO"]
[{"$f":"IF('lista botiquin C'!A34<>\"\",'lista botiquin C'!A34,\"\")","v":"GELATINA HEMOSTÁTICA esponja 200 x 70 x 0,5 mm."},{"$f":"IF('lista botiquin C'!B34<>\"\",'lista botiquin C'!B34,\"-\")","v":"-"},{"$f":"IF('lista botiquin C'!C34<>\"\",'lista botiquin C'!C34,\"-\")","v":"-"},{"$f":"+'lista botiquin C'!D34","v":1},{"$f":"+'lista botiquin C'!E34","v":"unidad"},{"$f":"+'lista botiquin C'!F34","v":0},{"$f":"IF('lista botiquin C'!G34<>\"\",'lista botiquin C'!G34,\"\")","v":""},{"$f":"IF(+G28=\"\",Sit!$B$1,IF(TODAY()>=Ghost!G28,+Sit!$B$2,IF(TODAY()>=Ghost!G28-30,Sit!$B$3,Sit!$B$4)))","v":"sin fecha de caducidad"},1,"cantidad sin cumplimentar  --> sin fecha de caducidad",{"$f":"IF('lista botiquin C'!F34=\"\",\"cantidad sin cumplimentar\",\n\nIF(I28=0,\"cantidad exigida\",\n\nIF(I28=1,\"falta1ud\",\n\nIF(I28>1,\"faltanuds\",\n\nIF(I28<0,\"dotación con excedentes\",\"VER\" )))))","v":"cantidad sin cumplimentar"},"cantidad sin cumplimentar","C60MS02",1,"unidad",0,{"$f":"+'Consulta situacion del botiquin'!O6","v":0},"",27,null,"GELATINA HEMOSTÁTICA esponja 200 x 70 x 0,5 mm."]
[{"$f":"IF('lista botiquin C'!A35<>\"\",'lista botiquin C'!A35,\"\")","v":"APARATO DE REANIMACIÓN MANUAL (AMBÚ) con MÁSCARA ADULTOS  (e)"},{"$f":"IF('lista botiquin C'!B35<>\"\",'lista botiquin C'!B35,\"-\")","v":"-"},{"$f":"IF('lista botiquin C'!C35<>\"\",'lista botiquin C'!C35,\"-\")","v":"-"},{"$f":"+'lista botiquin C'!D35","v":1},{"$f":"+'lista botiquin C'!E35","v":"unidad"},{"$f":"+'lista botiquin C'!F35","v":0},{"$f":"IF('lista botiquin C'!G35<>\"\",'lista botiquin C'!G35,\"\")","v":""},{"$f":"IF(+G29=\"\",Sit!$B$1,IF(TODAY()>=Ghost!G29,+Sit!$B$2,IF(TODAY()>=Ghost!G29-30,Sit!$B$3,Sit!$B$4)))","v":"sin fecha de caducidad"},1,"cantidad sin cumplimentar  --> sin fecha de caducidad",{"$f":"IF('lista botiquin C'!F35=\"\",\"cantidad sin cumplimentar\",\n\nIF(I29=0,\"cantidad exigida\",\n\nIF(I29=1,\"falta1ud\",\n\nIF(I29>1,\"faltanuds\",\n\nIF(I29<0,\"dotación con excedentes\",\"VER\" )))))","v":"cantidad sin cumplimentar"},"cantidad sin cumplimentar","C60MS03",1,"unidad",0,{"$f":"+'Consulta situacion del botiquin'!O7","v":0},"",28,null,"APARATO DE REANIMACIÓN MANUAL (AMBÚ) con MÁSCARA ADULTOS  (e)",null,"Puede ubicarse fuera de la carcasa del botiquín, en su envase original"]
[{"$f":"IF('lista botiquin C'!A36<>\"\",'lista botiquin C'!A36,\"\")","v":"CÁNULA PARA REANIMACIÓN BOCA A BOCA. TUBO DE GUEDEL núm. 3"},{"$f":"IF('lista botiquin C'!B36<>\"\",'lista botiquin C'!B36,\"-\")","v":"-"},{"$f":"IF('lista botiquin C'!C36<>\"\",'lista botiquin C'!C36,\"-\")","v":"-"},{"$f":"+'lista botiquin C'!D36","v":1},{"$f":"+'lista botiquin C'!E36","v":"unidad"},{"$f":"+'lista botiquin C'!F36","v":0},{"$f":"IF('lista botiquin C'!G36<>\"\",'lista botiquin C'!G36,\"\")","v":""},{"$f":"IF(+G30=\"\",Sit!$B$1,IF(TODAY()>=Ghost!G30,+Sit!$B$2,IF(TODAY()>=Ghost!G30-30,Sit!$B$3,Sit!$B$4)))","v":"sin fecha de caducidad"},1,"cantidad sin cumplimentar  --> sin fecha de caducidad",{"$f":"IF('lista botiquin C'!F36=\"\",\"cantidad sin cumplimentar\",\n\nIF(I30=0,\"cantidad exigida\",\n\nIF(I30=1,\"falta1ud\",\n\nIF(I30>1,\"faltanuds\",\n\nIF(I30<0,\"dotación con excedentes\",\"VER\" )))))","v":"cantidad sin cumplimentar"},"cantidad sin cumplimentar","C60MS04",1,"unidad",0,{"$f":"+'Consulta situacion del botiquin'!O8","v":0},"",29,null,"CÁNULA PARA REANIMACIÓN BOCA A BOCA. TUBO DE GUEDEL núm. 3"]
[{"$f":"IF('lista botiquin C'!A37<>\"\",'lista botiquin C'!A37,\"\")","v":"CÁNULA PARA REANIMACIÓN BOCA A BOCA. TUBO DE GUEDEL núm. 4"},{"$f":"IF('lista botiquin C'!B37<>\"\",'lista botiquin C'!B37,\"-\")","v":"-"},{"$f":"IF('lista botiquin C'!C37<>\"\",'lista botiquin C'!C37,\"-\")","v":"-"},{"$f":"+'lista botiquin C'!D37","v":1},{"$f":"+'lista botiquin C'!E37","v":"unidad"},{"$f":"+'lista botiquin C'!F37","v":0},{"$f":"IF('lista botiquin C'!G37<>\"\",'lista botiquin C'!G37,\"\")","v":""},{"$f":"IF(+G31=\"\",Sit!$B$1,IF(TODAY()>=Ghost!G31,+Sit!$B$2,IF(TODAY()>=Ghost!G31-30,Sit!$B$3,Sit!$B$4)))","v":"sin fecha de caducidad"},1,"cantidad sin cumplimentar  --> sin fecha de caducidad",{"$f":"IF('lista botiquin C'!F37=\"\",\"cantidad sin cumplimentar\",\n\nIF(I31=0,\"cantidad exigida\",\n\nIF(I31=1,\"falta1ud\",\n\nIF(I31>1,\"faltanuds\",\n\nIF(I31<0,\"dotación con excedentes\",\"VER\" )))))","v":"cantidad sin cumplimentar"},"cantidad sin cumplimentar","C60MS05",1,"unidad",0,{"$f":"+'Consulta situacion del botiquin'!O9","v":0},"",30,null,"CÁNULA PARA REANIMACIÓN BOCA A BOCA. TUBO DE GUEDEL núm. 4"]
[{"$f":"IF('lista botiquin C'!A38<>\"\",'lista botiquin C'!A38,\"\")","v":"VENDAS ELÁSTICAS 7 cm. x 4 m."},{"$f":"IF('lista botiquin C'!B38<>\"\",'lista botiquin C'!B38,\"-\")","v":"-"},{"$f":"IF('lista botiquin C'!C38<>\"\",'lista botiquin C'!C38,\"-\")","v":"-"},{"$f":"+'lista botiquin C'!D38","v":2},{"$f":"+'lista botiquin C'!E38","v":"unidades"},{"$f":"+'lista botiquin C'!F38","v":0},{"$f":"IF('lista botiquin C'!G38<>\"\",'lista botiquin C'!G38,\"\")","v":""},{"$f":"IF(+G32=\"\",Sit!$B$1,IF(TODAY()>=Ghost!G32,+Sit!$B$2,IF(TODAY()>=Ghost!G32-30,Sit!$B$3,Sit!$B$4)))","v":"sin fecha de caducidad"},2,"cantidad sin cumplimentar  --> sin fecha de caducidad",{"$f":"IF('lista botiquin C'!F38=\"\",\"cantidad sin cumplimentar\",\n\nIF(I32=0,\"cantidad exigida\",\n\nIF(I32=1,\"falta1ud\",\n\nIF(I32>1,\"faltanuds\",\n\nIF(I32<0,\"dotación con excedentes\",\"VER\" )))))","v":"cantidad sin cumplimentar"},"cantidad sin cumplimentar","C60MS06",2,"unidades",0,{"$f":"+'Consulta situacion del botiquin'!O10","v":0},"",31,null,"VENDAS ELÁSTICAS 7 cm. x 4 m"]
[{"$f":"IF('lista botiquin C'!A39<>\"\",'lista botiquin C'!A39,\"\")","v":"COMPRESAS DE GASA ESTÉRILES de 20 cm. x 20 cm. Caja con 25 unidades"},{"$f":"IF('lista botiquin C'!B39<>\"\",'lista botiquin C'!B39,\"-\")","v":"-"},{"$f":"IF('lista botiquin C'!C39<>\"\",'lista botiquin C'!C39,\"-\")","v":"-"},{"$f":"+'lista botiquin C'!D39","v":1},{"$f":"+'lista botiquin C'!E39","v":"caja"},{"$f":"+'lista botiquin C'!F39","v":0},{"$f":"IF('lista botiquin C'!G39<>\"\",'lista botiquin C'!G39,\"\")","v":""},{"$f":"IF(+G33=\"\",Sit!$B$1,IF(TODAY()>=Ghost!G33,+Sit!$B$2,IF(TODAY()>=Ghost!G33-30,Sit!$B$3,Sit!$B$4)))","v":"sin fecha de caducidad"},1,"cantidad sin cumplimentar  --> sin fecha de caducidad",{"$f":"IF('lista botiquin C'!F39=\"\",\"cantidad sin cumplimentar\",\n\nIF(I33=0,\"cantidad exigida\",\n\nIF(I33=1,\"falta1ud\",\n\nIF(I33>1,\"faltanuds\",\n\nIF(I33<0,\"dotación con excedentes\",\"VER\" )))))","v":"cantidad sin cumplimentar"},"cantidad sin cumplimentar","C60MS07",1,"caja",0,{"$f":"+'Consulta situacion del botiquin'!O11","v":0},"",32,null,"COMPRESAS DE GASA ESTÉRILES de 20 cm. x 20 cm.","caja con 25 unidades"]
[{"$f":"IF('lista botiquin C'!A40<>\"\",'lista botiquin C'!A40,\"\")","v":"ESPARADRAPO HIPOALERGÉNICO de  5 cm. x 10 m."},{"$f":"IF('lista botiquin C'!B40<>\"\",'lista botiquin C'!B40,\"-\")","v":"-"},{"$f":"IF('lista botiquin C'!C40<>\"\",'lista botiquin C'!C40,\"-\")","v":"-"},{"$f":"+'lista botiquin C'!D40","v":1},{"$f":"+'lista botiquin C'!E40","v":"unidad"},{"$f":"+'lista botiquin C'!F40","v":0},{"$f":"IF('lista botiquin C'!G40<>\"\",'lista botiquin C'!G40,\"\")","v":""},{"$f":"IF(+G34=\"\",Sit!$B$1,IF(TODAY()>=Ghost!G34,+Sit!$B$2,IF(TODAY()>=Ghost!G34-30,Sit!$B$3,Sit!$B$4)))","v":"sin fecha de caducidad"},1,"cantidad sin cumplimentar  --> sin fecha de caducidad",{"$f":"IF('lista botiquin C'!F40=\"\",\"cantidad sin cumplimentar\",\n\nIF(I34=0,\"cantidad exigida\",\n\nIF(I34=1,\"falta1ud\",\n\nIF(I34>1,\"faltanuds\",\n\nIF(I34<0,\"dotación con excedentes\",\"VER\" )))))","v":"cantidad sin cumplimentar"},"cantidad sin cumplimentar","C60MS08",1,"unidad",0,{"$f":"+'Consulta situacion del botiquin'!O12","v":0},"",33,null,"ESPARADRAPO HIPOALERGÉNICO de  5 cm. x 10 m"]
[{"$f":"IF('lista botiquin C'!A41<>\"\",'lista botiquin C'!A41,\"\")","v":"GUANTES DESECHABLES DE  VINILO del núm. 8-9"},{"$f":"IF('lista botiquin C'!B41<>\"\",'lista botiquin C'!B41,\"-\")","v":"-"},{"$f":"IF('lista botiquin C'!C41<>\"\",'lista botiquin C'!C41,\"-\")","v":"-"},{"$f":"+'lista botiquin C'!D41","v":4},{"$f":"+'lista botiquin C'!E41","v":"pares"},{"$f":"+'lista botiquin C'!F41","v":0},{"$f":"IF('lista botiquin C'!G41<>\"\",'lista botiquin C'!G41,\"\")","v":""},{"$f":"IF(+G35=\"\",Sit!$B$1,IF(TODAY()>=Ghost!G35,+Sit!$B$2,IF(TODAY()>=Ghost!G35-30,Sit!$B$3,Sit!$B$4)))","v":"sin fecha de caducidad"},4,"cantidad sin cumplimentar  --> sin fecha de caducidad",{"$f":"IF('lista botiquin C'!F41=\"\",\"cantidad sin cumplimentar\",\n\nIF(I35=0,\"cantidad exigida\",\n\nIF(I35=1,\"falta1ud\",\n\nIF(I35>1,\"faltanuds\",\n\nIF(I35<0,\"dotación con excedentes\",\"VER\" )))))","v":"cantidad sin cumplimentar"},"cantidad sin cumplimentar","C60MS09",4,"pares",0,{"$f":"+'Consulta situacion del botiquin'!O13","v":0},"",34,null,"GUANTES DESECHABLES DE  VINILO del núm. 8-9"]
[{"$f":"IF('lista botiquin C'!A42<>\"\",'lista botiquin C'!A42,\"\")","v":"APÓSITOS AUTOADHESIVOS ESTÉRILES de 8 cm. x 10 cm. Caja con 5 unidades"},{"$f":"IF('lista botiquin C'!B42<>\"\",'lista botiquin C'!B42,\"-\")","v":"-"},{"$f":"IF('lista botiquin C'!C42<>\"\",'lista botiquin C'!C42,\"-\")","v":"-"},{"$f":"+'lista botiquin C'!D42","v":1},{"$f":"+'lista botiquin C'!E42","v":"caja"},{"$f":"+'lista botiquin C'!F42","v":0},{"$f":"IF('lista botiquin C'!G42<>\"\",'lista botiquin C'!G42,\"\")","v":""},{"$f":"IF(+G36=\"\",Sit!$B$1,IF(TODAY()>=Ghost!G36,+Sit!$B$2,IF(TODAY()>=Ghost!G36-30,Sit!$B$3,Sit!$B$4)))","v":"sin fecha de caducidad"},1,"cantidad sin cumplimentar  --> sin fecha de caducidad",{"$f":"IF('lista botiquin C'!F42=\"\",\"cantidad sin cumplimentar\",\n\nIF(I36=0,\"cantidad exigida\",\n\nIF(I36=1,\"falta1ud\",\n\nIF(I36>1,\"faltanuds\",\n\nIF(I36<0,\"dotación con excedentes\",\"VER\" )))))","v":"cantidad sin cumplimentar"},"cantidad sin cumplimentar","C60MS10",1,"caja",0,{"$f":"+'Consulta situacion del botiquin'!O14","v":0},"",35,null,"APÓSITOS AUTOADHESIVOS ESTÉRILES de 8 cm. x 10 cm.","caja con 5 unidades"]
[{"$f":"IF('lista botiquin C'!A43<>\"\",'lista botiquin C'!A43,\"\")","v":"APÓSITOS  HIDROCOLOIDES  ESTÉRILES  de 5 cm. x 5 cm. Caja con 3 unidades"},{"$f":"IF('lista botiquin C'!B43<>\"\",'lista botiquin C'!B43,\"-\")","v":"-"},{"$f":"IF('lista botiquin C'!C43<>\"\",'lista botiquin C'!C43,\"-\")","v":"-"},{"$f":"+'lista botiquin C'!D43","v":1},{"$f":"+'lista botiquin C'!E43","v":"caja"},{"$f":"+'lista botiquin C'!F43","v":0},{"$f":"IF('lista botiquin C'!G43<>\"\",'lista botiquin C'!G43,\"\")","v":""},{"$f":"IF(+G37=\"\",Sit!$B$1,IF(TODAY()>=Ghost!G37,+Sit!$B$2,IF(TODAY()>=Ghost!G37-30,Sit!$B$3,Sit!$B$4)))","v":"sin fecha de caducidad"},1,"cantidad sin cumplimentar  --> sin fecha de caducidad",{"$f":"IF('lista botiquin C'!F43=\"\",\"cantidad sin cumplimentar\",\n\nIF(I37=0,\"cantidad exigida\",\n\nIF(I37=1,\"falta1ud\",\n\nIF(I37>1,\"faltanuds\",\n\nIF(I37<0,\"dotación con excedentes\",\"VER\" )))))","v":"cantidad sin cumplimentar"},"cantidad sin cumplimentar","C60MS11",1,"caja",0,{"$f":"+'Consulta situacion del botiquin'!O15","v":0},"",36,null,"APÓSITOS  HIDROCOLOIDES  ESTÉRILES  de 5 cm. x 5 cm.","caja con 3 unidades"]
[{"$f":"IF('lista botiquin C'!A44<>\"\",'lista botiquin C'!A44,\"\")","v":"APÓSITOS ADHESIVOS PLÁSTICOS. Rollo de 6 cm. x 1 m."},{"$f":"IF('lista botiquin C'!B44<>\"\",'lista botiquin C'!B44,\"-\")","v":"-"},{"$f":"IF('lista botiquin C'!C44<>\"\",'lista botiquin C'!C44,\"-\")","v":"-"},{"$f":"+'lista botiquin C'!D44","v":1},{"$f":"+'lista botiquin C'!E44","v":"unidad"},{"$f":"+'lista botiquin C'!F44","v":0},{"$f":"IF('lista botiquin C'!G44<>\"\",'lista botiquin C'!G44,\"\")","v":""},{"$f":"IF(+G38=\"\",Sit!$B$1,IF(TODAY()>=Ghost!G38,+Sit!$B$2,IF(TODAY()>=Ghost!G38-30,Sit!$B$3,Sit!$B$4)))","v":"sin fecha de caducidad"},1,"cantidad sin cumplimentar  --> sin fecha de caducidad",{"$f":"IF('lista botiquin C'!F44=\"\",\"cantidad sin cumplimentar\",\n\nIF(I38=0,\"cantidad exigida\",\n\nIF(I38=1,\"falta1ud\",\n\nIF(I38>1,\"faltanuds\",\n\nIF(I38<0,\"dotación con excedentes\",\"VER\" )))))","v":"cantidad sin cumplimentar"},"cantidad sin cumplimentar","C60MS12",1,"unidad",0,{"$f":"+'Consulta situacion del botiquin'!O16","v":0},"",37,null,"APÓSITOS ADHESIVOS PLÁSTICOS. Rollo de 6 cm. x 1 m"]
[{"$f":"IF('lista botiquin C'!A45<>\"\",'lista botiquin C'!A45,\"\")","v":"SUTURAS ADHESIVAS. Paquete de 6 mm x 102 mm."},{"$f":"IF('lista botiquin C'!B45<>\"\",'lista botiquin C'!B45,\"-\")","v":"-"},{"$f":"IF('lista botiquin C'!C45<>\"\",'lista botiquin C'!C45,\"-\")","v":"-"},{"$f":"+'lista botiquin C'!D45","v":1},{"$f":"+'lista botiquin C'!E45","v":"paquete"},{"$f":"+'lista botiquin C'!F45","v":0},{"$f":"IF('lista botiquin C'!G45<>\"\",'lista botiquin C'!G45,\"\")","v":""},{"$f":"IF(+G39=\"\",Sit!$B$1,IF(TODAY()>=Ghost!G39,+Sit!$B$2,IF(TODAY()>=Ghost!G39-30,Sit!$B$3,Sit!$B$4)))","v":"sin fecha de caducidad"},1,"cantidad sin cumplimentar  --> sin fecha de caducidad",{"$f":"IF('lista botiquin C'!F45=\"\",\"cantidad sin cumplimentar\",\n\nIF(I39=0,\"cantidad exigida\",\n\nIF(I39=1,\"falta1ud\",\n\nIF(I39>1,\"faltanuds\",\n\nIF(I39<0,\"dotación con excedentes\",\"VER\" )))))","v":"cantidad sin cumplimentar"},"cantidad sin cumplimentar","C60MS13",1,"paquete",0,{"$f":"+'Consulta situacion del botiquin'!O17","v":0},"",38,null,"SUTURAS ADHESIVAS. Paquete de 6 mm x 102 mm."]
[{"$f":"IF('lista botiquin C'!A46<>\"\",'lista botiquin C'!A46,\"\")","v":"GASAS GRASAS de 7 cm. x 9 cm. Caja con 20 sobres"},{"$f":"IF('lista botiquin C'!B46<>\"\",'lista botiquin C'!B46,\"-\")","v":"-"},{"$f":"IF('lista botiquin C'!C46<>\"\",'lista botiquin C'!C46,\"-\")","v":"-"},{"$f":"+'lista botiquin C'!D46","v":1},{"$f":"+'lista botiquin C'!E46","v":"caja"},{"$f":"+'lista botiquin C'!F46","v":0},{"$f":"IF('lista botiquin C'!G46<>\"\",'lista botiquin C'!G46,\"\")","v":""},{"$f":"IF(+G40=\"\",Sit!$B$1,IF(TODAY()>=Ghost!G40,+Sit!$B$2,IF(TODAY()>=Ghost!G40-30,Sit!$B$3,Sit!$B$4)))","v":"sin fecha de caducidad"},1,"cantidad sin cumplimentar  --> sin fecha de caducidad",{"$f":"IF('lista botiquin C'!F46=\"\",\"cantidad sin cumplimentar\",\n\nIF(I40=0,\"cantidad exigida\",\n\nIF(I40=1,\"falta1ud\",\n\nIF(I40>1,\"faltanuds\",\n\nIF(I40<0,\"dotación con excedentes\",\"VER\" )))))","v":"cantidad sin cumplimentar"},"cantidad sin cumplimentar","C60MS14",1,"caja",0,{"$f":"+'Consulta situacion del botiquin'!O18","v":0},"",39,null,"GASAS GRASAS de 7 cm. x 9 cm.","caja con 20 sobres"]
[{"$f":"IF('lista botiquin C'!A47<>\"\",'lista botiquin C'!A47,\"\")","v":"TIJERA RECTA AGUDA"},{"$f":"IF('lista botiquin C'!B47<>\"\",'lista botiquin C'!B47,\"-\")","v":"-"},{"$f":"IF('lista botiquin C'!C47<>\"\",'lista botiquin C'!C47,\"-\")","v":"-"},{"$f":"+'lista botiquin C'!D47","v":1},{"$f":"+'lista botiquin C'!E47","v":"unidad"},{"$f":"+'lista botiquin C'!F47","v":0},{"$f":"IF('lista botiquin C'!G47<>\"\",'lista botiquin C'!G47,\"\")","v":""},{"$f":"IF(+G41=\"\",Sit!$B$1,IF(TODAY()>=Ghost!G41,+Sit!$B$2,IF(TODAY()>=Ghost!G41-30,Sit!$B$3,Sit!$B$4)))","v":"sin fecha de caducidad"},1,"cantidad sin cumplimentar  --> sin fecha de caducidad",{"$f":"IF('lista botiquin C'!F47=\"\",\"cantidad sin cumplimentar\",\n\nIF(I41=0,\"cantidad exigida\",\n\nIF(I41=1,\"falta1ud\",\n\nIF(I41>1,\"faltanuds\",\n\nIF(I41<0,\"dotación con excedentes\",\"VER\" )))))","v":"cantidad sin cumplimentar"},"cantidad sin cumplimentar","C60MS15",1,"unidad",0,{"$f":"+'Consulta situacion del botiquin'!O19","v":0},"",40,null,"TIJERA RECTA AGUDA"]
[{"$f":"IF('lista botiquin C'!A48<>\"\",'lista botiquin C'!A48,\"\")","v":"PINZAS DE DISECCIÓN RECTAS SIN DIENTES "},{"$f":"IF('lista botiquin C'!B48<>\"\",'lista botiquin C'!B48,\"-\")","v":"-"},{"$f":"IF('lista botiquin C'!C48<>\"\",'lista botiquin C'!C48,\"-\")","v":"-"},{"$f":"+'lista botiquin C'!D48","v":1},{"$f":"+'lista botiquin C'!E48","v":"unidad"},{"$f":"+'lista botiquin C'!F48","v":0},{"$f":"IF('lista botiquin C'!G48<>\"\",'lista botiquin C'!G48,\"\")","v":""},{"$f":"IF(+G42=\"\",Sit!$B$1,IF(TODAY()>=Ghost!G42,+Sit!$B$2,IF(TODAY()>=Ghost!G42-30,Sit!$B$3,Sit!$B$4)))","v":"sin fecha de caducidad"},1,"cantidad sin cumplimentar  --> sin fecha de caducidad",{"$f":"IF('lista botiquin C'!F48=\"\",\"cantidad sin cumplimentar\",\n\nIF(I42=0,\"cantidad exigida\",\n\nIF(I42=1,\"falta1ud\",\n\nIF(I42>1,\"faltanuds\",\n\nIF(I42<0,\"dotación con excedentes\",\"VER\" )))))","v":"cantidad sin cumplimentar"},"cantidad sin cumplimentar","C60MS16",1,"unidad",0,{"$f":"+'Consulta situacion del botiquin'!O20","v":0},"",41,null,"PINZAS DE DISECCIÓN RECTAS SIN DIENTES "]
[{"$f":"IF('lista botiquin C'!A49<>\"\",'lista botiquin C'!A49,\"\")","v":"TERMÓMETRO CLÍNICO DIGITAL"},{"$f":"IF('lista botiquin C'!B49<>\"\",'lista botiquin C'!B49,\"-\")","v":"-"},{"$f":"IF('lista botiquin C'!C49<>\"\",'lista botiquin C'!C49,\"-\")","v":"-"},{"$f":"+'lista botiquin C'!D49","v":1},{"$f":"+'lista botiquin C'!E49","v":"unidad"},{"$f":"+'lista botiquin C'!F49","v":0},{"$f":"IF('lista botiquin C'!G49<>\"\",'lista botiquin C'!G49,\"\")","v":""},{"$f":"IF(+G43=\"\",Sit!$B$1,IF(TODAY()>=Ghost!G43,+Sit!$B$2,IF(TODAY()>=Ghost!G43-30,Sit!$B$3,Sit!$B$4)))","v":"sin fecha de caducidad"},1,"cantidad sin cumplimentar  --> sin fecha de caducidad",{"$f":"IF('lista botiquin C'!F49=\"\",\"cantidad sin cumplimentar\",\n\nIF(I43=0,\"cantidad exigida\",\n\nIF(I43=1,\"falta1ud\",\n\nIF(I43>1,\"faltanuds\",\n\nIF(I43<0,\"dotación con excedentes\",\"VER\" )))))","v":"cantidad sin cumplimentar"},"cantidad sin cumplimentar","C60MS17",1,"unidad",0,{"$f":"+'Consulta situacion del botiquin'!O21","v":0},"",42,null,"TERMÓMETRO CLÍNICO DIGITAL"]
[{"$f":"IF('lista botiquin C'!A50<>\"\",'lista botiquin C'!A50,\"\")","v":"GUÍA SANITARIA A BORDO"},{"$f":"IF('lista botiquin C'!B50<>\"\",'lista botiquin C'!B50,\"-\")","v":"-"},{"$f":"IF('lista botiquin C'!C50<>\"\",'lista botiquin C'!C50,\"-\")","v":"-"},{"$f":"+'lista botiquin C'!D50","v":1},{"$f":"+'lista botiquin C'!E50","v":"ejemplar"},{"$f":"+'lista botiquin C'!F50","v":0},{"$f":"IF('lista botiquin C'!G50<>\"\",'lista botiquin C'!G50,\"\")","v":""},{"$f":"IF(+G44=\"\",Sit!$B$1,IF(TODAY()>=Ghost!G44,+Sit!$B$2,IF(TODAY()>=Ghost!G44-30,Sit!$B$3,Sit!$B$4)))","v":"sin fecha de caducidad"},1,"cantidad sin cumplimentar  --> sin fecha de caducidad",{"$f":"IF('lista botiquin C'!F50=\"\",\"cantidad sin cumplimentar\",\n\nIF(I44=0,\"cantidad exigida\",\n\nIF(I44=1,\"falta1ud\",\n\nIF(I44>1,\"faltanuds\",\n\nIF(I44<0,\"dotación con excedentes\",\"VER\" )))))","v":"cantidad sin cumplimentar"},"cantidad sin cumplimentar","C60MS18",1,"ejemplar",0,{"$f":"+'Consulta situacion del botiquin'!O22","v":0},"",43,null,"GUÍA SANITARIA A BORDO"]
[{"$f":"IF('lista botiquin C'!A51<>\"\",'lista botiquin C'!A51,\"\")","v":"JERINGAS DESECHABLES CON AGUJA, 5cc. (IM)"},{"$f":"IF('lista botiquin C'!B51<>\"\",'lista botiquin C'!B51,\"-\")","v":"-"},{"$f":"IF('lista botiquin C'!C51<>\"\",'lista botiquin C'!C51,\"-\")","v":"-"},{"$f":"+'lista botiquin C'!D51","v":2},{"$f":"+'lista botiquin C'!E51","v":"unidades"},{"$f":"+'lista botiquin C'!F51","v":0},{"$f":"IF('lista botiquin C'!G51<>\"\",'lista botiquin C'!G51,\"\")","v":""},{"$f":"IF(+G45=\"\",Sit!$B$1,IF(TODAY()>=Ghost!G45,+Sit!$B$2,IF(TODAY()>=Ghost!G45-30,Sit!$B$3,Sit!$B$4)))","v":"sin fecha de caducidad"},2,"cantidad sin cumplimentar  --> sin fecha de caducidad",{"$f":"IF('lista botiquin C'!F51=\"\",\"cantidad sin cumplimentar\",\n\nIF(I45=0,\"cantidad exigida\",\n\nIF(I45=1,\"falta1ud\",\n\nIF(I45>1,\"faltanuds\",\n\nIF(I45<0,\"dotación con excedentes\",\"VER\" )))))","v":"cantidad sin cumplimentar"},"cantidad sin cumplimentar","C60MS19",2,"unidades",0,{"$f":"+'Consulta situacion del botiquin'!O23","v":0},"",44,null,"JERINGAS DESECHABLES CON AGUJA, 5cc. (IM)"]
[{"$f":"IF('lista botiquin C'!A52<>\"\",'lista botiquin C'!A52,\"\")","v":"FÉRULAS DE ALUMINIO MALEABLE PARA DEDOS 2 cm. x 50 cm."},{"$f":"IF('lista botiquin C'!B52<>\"\",'lista botiquin C'!B52,\"-\")","v":"-"},{"$f":"IF('lista botiquin C'!C52<>\"\",'lista botiquin C'!C52,\"-\")","v":"-"},{"$f":"+'lista botiquin C'!D52","v":1},{"$f":"+'lista botiquin C'!E52","v":"tira"},{"$f":"+'lista botiquin C'!F52","v":0},{"$f":"IF('lista botiquin C'!G52<>\"\",'lista botiquin C'!G52,\"\")","v":""},{"$f":"IF(+G46=\"\",Sit!$B$1,IF(TODAY()>=Ghost!G46,+Sit!$B$2,IF(TODAY()>=Ghost!G46-30,Sit!$B$3,Sit!$B$4)))","v":"sin fecha de caducidad"},1,"cantidad sin cumplimentar  --> sin fecha de caducidad",{"$f":"IF('lista botiquin C'!F52=\"\",\"cantidad sin cumplimentar\",\n\nIF(I46=0,\"cantidad exigida\",\n\nIF(I46=1,\"falta1ud\",\n\nIF(I46>1,\"faltanuds\",\n\nIF(I46<0,\"dotación con excedentes\",\"VER\" )))))","v":"cantidad sin cumplimentar"},"cantidad sin cumplimentar","C60MS20",1,"tira",0,{"$f":"+'Consulta situacion del botiquin'!O24","v":0},"",45,null,"FÉRULAS DE ALUMINIO MALEABLE PARA DEDOS 2 cm. x 50 cm."]
[{"$f":"IF('lista botiquin C'!A53<>\"\",'lista botiquin C'!A53,\"\")","v":"FÉRULAS HINCHABLES TRANSPARENTES. Juego con varios tamaños (e)"},{"$f":"IF('lista botiquin C'!B53<>\"\",'lista botiquin C'!B53,\"-\")","v":"-"},{"$f":"IF('lista botiquin C'!C53<>\"\",'lista botiquin C'!C53,\"-\")","v":"-"},{"$f":"+'lista botiquin C'!D53","v":1},{"$f":"+'lista botiquin C'!E53","v":"juego"},{"$f":"+'lista botiquin C'!F53","v":0},{"$f":"IF('lista botiquin C'!G53<>\"\",'lista botiquin C'!G53,\"\")","v":""},{"$f":"IF(+G47=\"\",Sit!$B$1,IF(TODAY()>=Ghost!G47,+Sit!$B$2,IF(TODAY()>=Ghost!G47-30,Sit!$B$3,Sit!$B$4)))","v":"sin fecha de caducidad"},1,"cantidad sin cumplimentar  --> sin fecha de caducidad",{"$f":"IF('lista botiquin C'!F53=\"\",\"cantidad sin cumplimentar\",\n\nIF(I47=0,\"cantidad exigida\",\n\nIF(I47=1,\"falta1ud\",\n\nIF(I47>1,\"faltanuds\",\n\nIF(I47<0,\"dotación con excedentes\",\"VER\" )))))","v":"cantidad sin cumplimentar"},"cantidad sin cumplimentar","C60MS21",1,"juego",0,{"$f":"+'Consulta situacion del botiquin'!O25","v":0},"",46,null,"FÉRULAS HINCHABLES TRANSPARENTES. Juego con varios tamaños (e)",null,"Puede ubicarse fuera de la carcasa del botiquín, en su envase original"]
[{"$f":"IF('lista botiquin C'!A54<>\"\",'lista botiquin C'!A54,\"\")","v":"COLLAR CERVICAL PARA INMOVILIZACIÓN. RÍGIDO GRADUABLE (e)"},{"$f":"IF('lista botiquin C'!B54<>\"\",'lista botiquin C'!B54,\"-\")","v":"-"},{"$f":"IF('lista botiquin C'!C54<>\"\",'lista botiquin C'!C54,\"-\")","v":"-"},{"$f":"+'lista botiquin C'!D54","v":1},{"$f":"+'lista botiquin C'!E54","v":"unidad"},{"$f":"+'lista botiquin C'!F54","v":0},{"$f":"IF('lista botiquin C'!G54<>\"\",'lista botiquin C'!G54,\"\")","v":""},{"$f":"IF(+G48=\"\",Sit!$B$1,IF(TODAY()>=Ghost!G48,+Sit!$B$2,IF(TODAY()>=Ghost!G48-30,Sit!$B$3,Sit!$B$4)))","v":"sin fecha de caducidad"},1,"cantidad sin cumplimentar  --> sin fecha de caducidad",{"$f":"IF('lista botiquin C'!F54=\"\",\"cantidad sin cumplimentar\",\n\nIF(I48=0,\"cantidad exigida\",\n\nIF(I48=1,\"falta1ud\",\n\nIF(I48>1,\"faltanuds\",\n\nIF(I48<0,\"dotación con excedentes\",\"VER\" )))))","v":"cantidad sin cumplimentar"},"cantidad sin cumplimentar","C60MS22",1,"unidad",0,{"$f":"+'Consulta situacion del botiquin'!O26","v":0},"",47,null,"COLLAR CERVICAL PARA INMOVILIZACIÓN. RÍGIDO GRADUABLE (e)",null,"Puede ubicarse fuera de la carcasa del botiquín, en su envase original"]
[{"$f":"IF('lista botiquin C'!A55<>\"\",'lista botiquin C'!A55,\"\")","v":"CABESTRILLO o VENDA TRIANGULAR"},{"$f":"IF('lista botiquin C'!B55<>\"\",'lista botiquin C'!B55,\"-\")","v":"-"},{"$f":"IF('lista botiquin C'!C55<>\"\",'lista botiquin C'!C55,\"-\")","v":"-"},{"$f":"+'lista botiquin C'!D55","v":1},{"$f":"+'lista botiquin C'!E55","v":"unidad"},{"$f":"+'lista botiquin C'!F55","v":0},{"$f":"IF('lista botiquin C'!G55<>\"\",'lista botiquin C'!G55,\"\")","v":""},{"$f":"IF(+G49=\"\",Sit!$B$1,IF(TODAY()>=Ghost!G49,+Sit!$B$2,IF(TODAY()>=Ghost!G49-30,Sit!$B$3,Sit!$B$4)))","v":"sin fecha de caducidad"},1,"cantidad sin cumplimentar  --> sin fecha de caducidad",{"$f":"IF('lista botiquin C'!F55=\"\",\"cantidad sin cumplimentar\",\n\nIF(I49=0,\"cantidad exigida\",\n\nIF(I49=1,\"falta1ud\",\n\nIF(I49>1,\"faltanuds\",\n\nIF(I49<0,\"dotación con excedentes\",\"VER\" )))))","v":"cantidad sin cumplimentar"},"cantidad sin cumplimentar","C60MS23",1,"unidad",0,{"$f":"+'Consulta situacion del botiquin'!O27","v":0},"",48,null,"CABESTRILLO o VENDA TRIANGULAR"]
[{"$f":"IF('lista botiquin C'!A56<>\"\",'lista botiquin C'!A56,\"\")","v":"MANTA PARA QUEMADOS Y SUPERVIVIENTES TERMO-AISLANTE Oro-plata"},{"$f":"IF('lista botiquin C'!B56<>\"\",'lista botiquin C'!B56,\"-\")","v":"-"},{"$f":"IF('lista botiquin C'!C56<>\"\",'lista botiquin C'!C56,\"-\")","v":"-"},{"$f":"+'lista botiquin C'!D56","v":1},{"$f":"+'lista botiquin C'!E56","v":"unidad"},{"$f":"+'lista botiquin C'!F56","v":0},{"$f":"IF('lista botiquin C'!G56<>\"\",'lista botiquin C'!G56,\"\")","v":""},{"$f":"IF(+G50=\"\",Sit!$B$1,IF(TODAY()>=Ghost!G50,+Sit!$B$2,IF(TODAY()>=Ghost!G50-30,Sit!$B$3,Sit!$B$4)))","v":"sin fecha de caducidad"},{"$f":"+D50-F50","v":1},"cantidad sin cumplimentar  --> sin fecha de caducidad",{"$f":"IF('lista botiquin C'!F56=\"\",\"cantidad sin cumplimentar\",\n\nIF(I50=0,\"cantidad exigida\",\n\nIF(I50=1,\"falta1ud\",\n\nIF(I50>1,\"faltanuds\",\n\nIF(I50<0,\"dotación con excedentes\",\"VER\" )))))","v":"cantidad sin cumplimentar"},"cantidad sin cumplimentar","C60MS24",1,"unidad",0,{"$f":"+'Consulta situacion del botiquin'!O28","v":0},"",49,null,"MANTA PARA QUEMADOS Y SUPERVIVIENTES TERMO-AISLANTE Oro-plata"]

{"sheet":"Sit","index":4,"n_rows":4,"n_cols":5,"rows_kept":4,"cut":false,"hidden":true,"merged":[]}
[null,"sin fecha de caducidad",null,null,""]
[null,"CADUCADO"]
[null,"PROXIMO A CADUCAR"]
[null,"EN FECHA"]

{"sheet":"Consulta situacion del botiquin","index":5,"n_rows":34,"n_cols":17,"rows_kept":34,"cut":false,"hidden":false,"merged":[[0,0,0,1],[1,0,1,1],[1,7,1,8],[0,4,0,6],[0,12,0,14],[30,0,30,14],[1,4,1,5],[1,12,1,13],[3,2,3,4],[3,10,3,12]]}
[{"$f":"IF(+identificacion!$D$3<>\"\",+identificacion!$D$3,\"\")","v":""},null,null,null,{"$f":"IF(+identificacion!$F$5<>\"\",+identificacion!$F$5,\"\")","v":""},null,null,null,null,{"$f":"IF(+identificacion!$D$3<>\"\",+identificacion!$D$3,\"\")","v":""},null,null,{"$f":"IF(+identificacion!$F$5<>\"\",+identificacion!$F$5,\"\")","v":""}]
[{"$f":"CONCATENATE(\"Matrícula: \",+identificacion!$D$4,\"  -     N.I.B.: \",+identificacion!$H$4)","v":"Matrícula:   -     N.I.B.: "},null,null,null,"Fecha del Control:",null,{"$f":"IF(+identificacion!$F$10<>\"\",+identificacion!$F$10,\"\")","v":""},null,null,{"$f":"CONCATENATE(\"Matrícula: \",+identificacion!$D$4,\"  -     N.I.B.: \",+identificacion!$H$4)","v":"Matrícula:   -     N.I.B.: "},null,null,"Fecha del Control:",null,{"$f":"IF(+identificacion!$F$10<>\"\",+identificacion!$F$10,\"\")","v":""}]
[]
["PRINCIPIO ACTIVO","PRESENTACIÓN","SITUACIÓN",null,null,"CADUCIDAD","Nº Uds. a REPONER",null,null,"MATERIAL SANITARIO","SITUACIÓN",null,null,"CADUCIDAD","Nº Uds. a REPONER"]
[{"$f":"+Ghost!B2","v":"EPINEFRINA"},{"$f":"+Ghost!C2","v":"1 mg. 1ml. (jeringa precargada)"},{"$f":"+Ghost!L2","v":"cantidad sin cumplimentar"},"->",{"$f":"+Ghost!H2","v":"sin fecha de caducidad"},{"$f":"+Ghost!G2","v":""},null,null,{"$f":"+Ghost!D2","v":1},{"$f":"+Ghost!A27","v":"TENSIÓMETRO DIGITAL HOMOLOGADO"},{"$f":"+Ghost!L27","v":"cantidad sin cumplimentar"},"->",{"$f":"+Ghost!H27","v":"sin fecha de caducidad"},{"$f":"+Ghost!G27","v":""},null,null,{"$f":"+Ghost!D27","v":1}]
[{"$f":"+Ghost!B3","v":"NITROGLICERINA"},{"$f":"+Ghost!C3","v":"0,8 mg. 30 comp."},{"$f":"+Ghost!L3","v":"cantidad sin cumplimentar"},"->",{"$f":"+Ghost!H3","v":"sin fecha de caducidad"},{"$f":"+Ghost!G3","v":""},null,null,{"$f":"+Ghost!D3","v":1},{"$f":"+Ghost!A28","v":"GELATINA HEMOSTÁTICA esponja 200 x 70 x 0,5 mm."},{"$f":"+Ghost!L28","v":"cantidad sin cumplimentar"},"->",{"$f":"+Ghost!H28","v":"sin fecha de caducidad"},{"$f":"+Ghost!G28","v":""},null,null,{"$f":"+Ghost!D28","v":1}]
[{"$f":"+Ghost!B4","v":"CAPTOPRIL"},{"$f":"+Ghost!C4","v":"25 mg. 60 comp."},{"$f":"+Ghost!L4","v":"cantidad sin cumplimentar"},"->",{"$f":"+Ghost!H4","v":"sin fecha de caducidad"},{"$f":"+Ghost!G4","v":""},null,null,{"$f":"+Ghost!#REF!","v":{"$error":"#REF!"}},{"$f":"+Ghost!A29","v":"APARATO DE REANIMACIÓN MANUAL (AMBÚ) con MÁSCARA ADULTOS  (e)"},{"$f":"+Ghost!L29","v":"cantidad sin cumplimentar"},"->",{"$f":"+Ghost!H29","v":"sin fecha de caducidad"},{"$f":"+Ghost!G29","v":""},null,null,{"$f":"+Ghost!D29","v":1}]
[{"$f":"+Ghost!B5","v":"ALGELDRATO+HIDRÓXIDO DE MAGNESIO"},{"$f":"+Ghost!C5","v":"600/300 mg. por comp..40 comp."},{"$f":"+Ghost!L5","v":"cantidad sin cumplimentar"},"->",{"$f":"+Ghost!H5","v":"sin fecha de caducidad"},{"$f":"+Ghost!G5","v":""},null,null,{"$f":"+Ghost!D4","v":1},{"$f":"+Ghost!A30","v":"CÁNULA PARA REANIMACIÓN BOCA A BOCA. TUBO DE GUEDEL núm. 3"},{"$f":"+Ghost!L30","v":"cantidad sin cumplimentar"},"->",{"$f":"+Ghost!H30","v":"sin fecha de caducidad"},{"$f":"+Ghost!G30","v":""},null,null,{"$f":"+Ghost!D30","v":1}]
[{"$f":"+Ghost!B6","v":"METOCLOPRAMIDA"},{"$f":"+Ghost!C6","v":"10 mg. 30 comp."},{"$f":"+Ghost!L6","v":"cantidad sin cumplimentar"},"->",{"$f":"+Ghost!H6","v":"sin fecha de caducidad"},{"$f":"+Ghost!G6","v":""},null,null,{"$f":"+Ghost!D5","v":1},{"$f":"+Ghost!A31","v":"CÁNULA PARA REANIMACIÓN BOCA A BOCA. TUBO DE GUEDEL núm. 4"},{"$f":"+Ghost!L31","v":"cantidad sin cumplimentar"},"->",{"$f":"+Ghost!H31","v":"sin fecha de caducidad"},{"$f":"+Ghost!G31","v":""},null,null,{"$f":"+Ghost!D31","v":1}]
[{"$f":"+Ghost!B7","v":"LOPERAMIDA"},{"$f":"+Ghost!C7","v":"2 mg. 20 cápsulas"},{"$f":"+Ghost!L7","v":"cantidad sin cumplimentar"},"->",{"$f":"+Ghost!H7","v":"sin fecha de caducidad"},{"$f":"+Ghost!G7","v":""},null,null,{"$f":"+Ghost!D6","v":1},{"$f":"+Ghost!A32","v":"VENDAS ELÁSTICAS 7 cm. x 4 m."},{"$f":"+Ghost!L32","v":"cantidad sin cumplimentar"},"->",{"$f":"+Ghost!H32","v":"sin fecha de caducidad"},{"$f":"+Ghost!G32","v":""},null,null,{"$f":"+Ghost!D32","v":2}]
[{"$f":"+Ghost!B8","v":"PARACETAMOL"},{"$f":"+Ghost!C8","v":"1 g. 30 comp."},{"$f":"+Ghost!L8","v":"cantidad sin cumplimentar"},"->",{"$f":"+Ghost!H8","v":"sin fecha de caducidad"},{"$f":"+Ghost!G8","v":""},null,null,{"$f":"+Ghost!D7","v":1},{"$f":"+Ghost!A33","v":"COMPRESAS DE GASA ESTÉRILES de 20 cm. x 20 cm. Caja con 25 unidades"},{"$f":"+Ghost!L33","v":"cantidad sin cumplimentar"},"->",{"$f":"+Ghost!H33","v":"sin fecha de caducidad"},{"$f":"+Ghost!G33","v":""},null,null,{"$f":"+Ghost!D33","v":1}]
[{"$f":"+Ghost!B9","v":"ÁCIDO ACETILSALICÍLICO"},{"$f":"+Ghost!C9","v":"100 mg. 30 comp."},{"$f":"+Ghost!L9","v":"cantidad sin cumplimentar"},"->",{"$f":"+Ghost!H9","v":"sin fecha de caducidad"},{"$f":"+Ghost!G9","v":""},null,null,{"$f":"+Ghost!D8","v":1},{"$f":"+Ghost!A34","v":"ESPARADRAPO HIPOALERGÉNICO de  5 cm. x 10 m."},{"$f":"+Ghost!L34","v":"cantidad sin cumplimentar"},"->",{"$f":"+Ghost!H34","v":"sin fecha de caducidad"},{"$f":"+Ghost!G34","v":""},null,null,{"$f":"+Ghost!D34","v":1}]
[{"$f":"+Ghost!B10","v":"DICLOFENACO SÓDICO"},{"$f":"+Ghost!C10","v":"50 mg. 40 comp."},{"$f":"+Ghost!L10","v":"cantidad sin cumplimentar"},"->",{"$f":"+Ghost!H10","v":"sin fecha de caducidad"},{"$f":"+Ghost!G10","v":""},null,null,{"$f":"+Ghost!D9","v":1},{"$f":"+Ghost!A35","v":"GUANTES DESECHABLES DE  VINILO del núm. 8-9"},{"$f":"+Ghost!L35","v":"cantidad sin cumplimentar"},"->",{"$f":"+Ghost!H35","v":"sin fecha de caducidad"},{"$f":"+Ghost!G35","v":""},null,null,{"$f":"+Ghost!D35","v":4}]
[{"$f":"+Ghost!B11","v":"DICLOFENACO SÓDICO"},{"$f":"+Ghost!C11","v":"1% gel tópico 60 g."},{"$f":"+Ghost!L11","v":"cantidad sin cumplimentar"},"->",{"$f":"+Ghost!H11","v":"sin fecha de caducidad"},{"$f":"+Ghost!G11","v":""},null,null,{"$f":"+Ghost!D10","v":1},{"$f":"+Ghost!A36","v":"APÓSITOS AUTOADHESIVOS ESTÉRILES de 8 cm. x 10 cm. Caja con 5 unidades"},{"$f":"+Ghost!L36","v":"cantidad sin cumplimentar"},"->",{"$f":"+Ghost!H36","v":"sin fecha de caducidad"},{"$f":"+Ghost!G36","v":""},null,null,{"$f":"+Ghost!D36","v":1}]
[{"$f":"+Ghost!B12","v":"METAMIZOL"},{"$f":"+Ghost!C12","v":"575 mg. 10 cápsulas"},{"$f":"+Ghost!L12","v":"cantidad sin cumplimentar"},"->",{"$f":"+Ghost!H12","v":"sin fecha de caducidad"},{"$f":"+Ghost!G12","v":""},null,null,{"$f":"+Ghost!D11","v":1},{"$f":"+Ghost!A37","v":"APÓSITOS  HIDROCOLOIDES  ESTÉRILES  de 5 cm. x 5 cm. Caja con 3 unidades"},{"$f":"+Ghost!L37","v":"cantidad sin cumplimentar"},"->",{"$f":"+Ghost!H37","v":"sin fecha de caducidad"},{"$f":"+Ghost!G37","v":""},null,null,{"$f":"+Ghost!D37","v":1}]
[{"$f":"+Ghost!B13","v":"DIAZEPAM"},{"$f":"+Ghost!C13","v":"10 mg. 6 ampollas"},{"$f":"+Ghost!L13","v":"cantidad sin cumplimentar"},"->",{"$f":"+Ghost!H13","v":"sin fecha de caducidad"},{"$f":"+Ghost!G13","v":""},null,null,{"$f":"+Ghost!D12","v":1},{"$f":"+Ghost!A38","v":"APÓSITOS ADHESIVOS PLÁSTICOS. Rollo de 6 cm. x 1 m."},{"$f":"+Ghost!L38","v":"cantidad sin cumplimentar"},"->",{"$f":"+Ghost!H38","v":"sin fecha de caducidad"},{"$f":"+Ghost!G38","v":""},null,null,{"$f":"+Ghost!D38","v":1}]
[{"$f":"+Ghost!B14","v":"HALOPERIDOL"},{"$f":"+Ghost!C14","v":"2 mg. solución oral"},{"$f":"+Ghost!L14","v":"cantidad sin cumplimentar"},"->",{"$f":"+Ghost!H14","v":"sin fecha de caducidad"},{"$f":"+Ghost!G14","v":""},null,null,{"$f":"+Ghost!D13","v":1},{"$f":"+Ghost!A39","v":"SUTURAS ADHESIVAS. Paquete de 6 mm x 102 mm."},{"$f":"+Ghost!L39","v":"cantidad sin cumplimentar"},"->",{"$f":"+Ghost!H39","v":"sin fecha de caducidad"},{"$f":"+Ghost!G39","v":""},null,null,{"$f":"+Ghost!D39","v":1}]
[{"$f":"+Ghost!B15","v":"DIMENHIDRINATO"},{"$f":"+Ghost!C15","v":"50 mg. 12 comp."},{"$f":"+Ghost!L15","v":"cantidad sin cumplimentar"},"->",{"$f":"+Ghost!H15","v":"sin fecha de caducidad"},{"$f":"+Ghost!G15","v":""},null,null,{"$f":"+Ghost!D14","v":1},{"$f":"+Ghost!A40","v":"GASAS GRASAS de 7 cm. x 9 cm. Caja con 20 sobres"},{"$f":"+Ghost!L40","v":"cantidad sin cumplimentar"},"->",{"$f":"+Ghost!H40","v":"sin fecha de caducidad"},{"$f":"+Ghost!G40","v":""},null,null,{"$f":"+Ghost!D40","v":1}]
[{"$f":"+Ghost!B16","v":"CETIRIZINA"},{"$f":"+Ghost!C16","v":"10 mg. 20 comp."},{"$f":"+Ghost!L16","v":"cantidad sin cumplimentar"},"->",{"$f":"+Ghost!H16","v":"sin fecha de caducidad"},{"$f":"+Ghost!G16","v":""},null,null,{"$f":"+Ghost!D15","v":1},{"$f":"+Ghost!A41","v":"TIJERA RECTA AGUDA"},{"$f":"+Ghost!L41","v":"cantidad sin cumplimentar"},"->",{"$f":"+Ghost!H41","v":"sin fecha de caducidad"},{"$f":"+Ghost!G41","v":""},null,null,{"$f":"+Ghost!D41","v":1}]
[{"$f":"+Ghost!B17","v":"METILPREDNISOLONA"},{"$f":"+Ghost!C17","v":"40 mg. 3 ampollas"},{"$f":"+Ghost!L17","v":"cantidad sin cumplimentar"},"->",{"$f":"+Ghost!H17","v":"sin fecha de caducidad"},{"$f":"+Ghost!G17","v":""},null,null,{"$f":"+Ghost!D16","v":1},{"$f":"+Ghost!A42","v":"PINZAS DE DISECCIÓN RECTAS SIN DIENTES "},{"$f":"+Ghost!L42","v":"cantidad sin cumplimentar"},"->",{"$f":"+Ghost!H42","v":"sin fecha de caducidad"},{"$f":"+Ghost!G42","v":""},null,null,{"$f":"+Ghost!D42","v":1}]
[{"$f":"+Ghost!B18","v":"FLUORESCEÍNA 2%"},{"$f":"+Ghost!C18","v":"colirio 1 frasco 10 ml."},{"$f":"+Ghost!L18","v":"cantidad sin cumplimentar"},"->",{"$f":"+Ghost!H18","v":"sin fecha de caducidad"},{"$f":"+Ghost!G18","v":""},null,null,{"$f":"+Ghost!D17","v":1},{"$f":"+Ghost!A43","v":"TERMÓMETRO CLÍNICO DIGITAL"},{"$f":"+Ghost!L43","v":"cantidad sin cumplimentar"},"->",{"$f":"+Ghost!H43","v":"sin fecha de caducidad"},{"$f":"+Ghost!G43","v":""},null,null,{"$f":"+Ghost!D43","v":1}]
[{"$f":"+Ghost!B19","v":"OXIBUPROCAÍNA"},{"$f":"+Ghost!C19","v":"0,2% colirio 10 ml."},{"$f":"+Ghost!L19","v":"cantidad sin cumplimentar"},"->",{"$f":"+Ghost!H19","v":"sin fecha de caducidad"},{"$f":"+Ghost!G19","v":""},null,null,{"$f":"+Ghost!D18","v":1},{"$f":"+Ghost!A44","v":"GUÍA SANITARIA A BORDO"},{"$f":"+Ghost!L44","v":"cantidad sin cumplimentar"},"->",{"$f":"+Ghost!H44","v":"sin fecha de caducidad"},{"$f":"+Ghost!G44","v":""},null,null,{"$f":"+Ghost!D44","v":1}]
[{"$f":"+Ghost!B20","v":"CICLOPENTOLATO"},{"$f":"+Ghost!C20","v":"1% colirio 5 ml."},{"$f":"+Ghost!L20","v":"cantidad sin cumplimentar"},"->",{"$f":"+Ghost!H20","v":"sin fecha de caducidad"},{"$f":"+Ghost!G20","v":""},null,null,{"$f":"+Ghost!D19","v":1},{"$f":"+Ghost!A45","v":"JERINGAS DESECHABLES CON AGUJA, 5cc. (IM)"},{"$f":"+Ghost!L45","v":"cantidad sin cumplimentar"},"->",{"$f":"+Ghost!H45","v":"sin fecha de caducidad"},{"$f":"+Ghost!G45","v":""},null,null,{"$f":"+Ghost!D45","v":2}]
[{"$f":"+Ghost!B21","v":"POVIDONA"},{"$f":"+Ghost!C21","v":"10 unidosis 5 ml."},{"$f":"+Ghost!L21","v":"cantidad sin cumplimentar"},"->",{"$f":"+Ghost!H21","v":"sin fecha de caducidad"},{"$f":"+Ghost!G21","v":""},null,null,{"$f":"+Ghost!D20","v":1},{"$f":"+Ghost!A46","v":"FÉRULAS DE ALUMINIO MALEABLE PARA DEDOS 2 cm. x 50 cm."},{"$f":"+Ghost!L46","v":"cantidad sin cumplimentar"},"->",{"$f":"+Ghost!H46","v":"sin fecha de caducidad"},{"$f":"+Ghost!G46","v":""},null,null,{"$f":"+Ghost!D46","v":1}]
[{"$f":"+Ghost!B22","v":"ALCOHOL DE 70°"},{"$f":"+Ghost!C22","v":"Solución 150 ml."},{"$f":"+Ghost!L22","v":"cantidad sin cumplimentar"},"->",{"$f":"+Ghost!H22","v":"sin fecha de caducidad"},{"$f":"+Ghost!G22","v":""},null,null,{"$f":"+Ghost!D21","v":1},{"$f":"+Ghost!A47","v":"FÉRULAS HINCHABLES TRANSPARENTES. Juego con varios tamaños (e)"},{"$f":"+Ghost!L47","v":"cantidad sin cumplimentar"},"->",{"$f":"+Ghost!H47","v":"sin fecha de caducidad"},{"$f":"+Ghost!G47","v":""},null,null,{"$f":"+Ghost!D47","v":1}]
[{"$f":"+Ghost!B23","v":"CLORHEXIDINA"},{"$f":"+Ghost!C23","v":"Solución tópica 1%. Frasco 25 ml."},{"$f":"+Ghost!L23","v":"cantidad sin cumplimentar"},"->",{"$f":"+Ghost!H23","v":"sin fecha de caducidad"},{"$f":"+Ghost!G23","v":""},null,null,{"$f":"+Ghost!D22","v":1},{"$f":"+Ghost!A48","v":"COLLAR CERVICAL PARA INMOVILIZACIÓN. RÍGIDO GRADUABLE (e)"},{"$f":"+Ghost!L48","v":"cantidad sin cumplimentar"},"->",{"$f":"+Ghost!H48","v":"sin fecha de caducidad"},{"$f":"+Ghost!G48","v":""},null,null,{"$f":"+Ghost!D48","v":1}]
[{"$f":"+Ghost!B24","v":"SOLUCIÓN ANTISÉPTICA para higiene de manos"},{"$f":"+Ghost!C24","v":"Sobres o Frasco 50 ml.."},{"$f":"+Ghost!L24","v":"cantidad sin cumplimentar"},"->",{"$f":"+Ghost!H24","v":"sin fecha de caducidad"},{"$f":"+Ghost!G24","v":""},null,null,null,{"$f":"+Ghost!A49","v":"CABESTRILLO o VENDA TRIANGULAR"},{"$f":"+Ghost!L49","v":"cantidad sin cumplimentar"},"->",{"$f":"+Ghost!H49","v":"sin fecha de caducidad"},{"$f":"+Ghost!G49","v":""}]
[{"$f":"+Ghost!B25","v":"SUERO FISIOLÓGICO LAVADO HERIDAS"},{"$f":"+Ghost!C25","v":"20 ml."},{"$f":"+Ghost!L25","v":"cantidad sin cumplimentar"},"->",{"$f":"+Ghost!H25","v":"sin fecha de caducidad"},{"$f":"+Ghost!G25","v":""},null,null,{"$f":"+Ghost!D25","v":2},{"$f":"+Ghost!A50","v":"MANTA PARA QUEMADOS Y SUPERVIVIENTES TERMO-AISLANTE Oro-plata"},{"$f":"+Ghost!L50","v":"cantidad sin cumplimentar"},"->",{"$f":"+Ghost!H50","v":"sin fecha de caducidad"},{"$f":"+Ghost!G50","v":""},null,null,{"$f":"+Ghost!D49","v":1}]
[{"$f":"+Ghost!B26","v":"CORTICOIDE + OTROS"},{"$f":"+Ghost!C26","v":"Gel de 30 g. "},{"$f":"+Ghost!L26","v":"cantidad sin cumplimentar"},"->",{"$f":"+Ghost!H26","v":"sin fecha de caducidad"},{"$f":"+Ghost!G26","v":""},null,null,{"$f":"+Ghost!D26","v":1},null,null,null,null,null,null,null,{"$f":"+Ghost!D50","v":1}]
[]
["(e) Puede ubicarse fuera de la carcasa del botiquín, en su envase original.  "]
[]
[]
["Observaciones:",{"$f":"CONCATENATE(\"Fecha de impresión: \",+DAY(TODAY()),\"/\",MONTH(TODAY()),\"/\",YEAR(TODAY()))","v":"Fecha de impresión: 20/5/2016"}]